Workbook

Sheet Gesamtrangliste
Q1: Breaks gesamt: | W1: =AD1+AF1+AH1+AJ1+AL1+AN1+AP1+AR1+AT1+AV1+AX1+AZ1+BB1+BD1+BF1+BH1+BJ1+BL1+BN1+BP1 -> 186 | AC1: Breaks 30 + | AD1: 30 | AE1: Breaks 30+ | AF1: 26 | AG1: Breaks 30 + | AH1: 11 | AI1: Breaks 30 + | AJ1: 11 | AK1: Breaks 30 + | AL1: 14 | AM1: Breaks 30 + | AN1: 24 | AO1: Breaks 30 + | AP1: 21 | AQ1: Breaks 30 + | AR1: 16 | AS1: Breaks 30 + | AT1: 22 | AU1: Breaks 30 + | AV1: 11 | AW1: Breaks 30 + | AX1: 0 | AY1: Breaks 30 + | AZ1: 0 | BA1: Breaks 30 + | BB1: 0 | BC1: Breaks 30 + | BD1: 0 | BE1: Breaks 30 | BF1: 0 | BG1: Breaks 30 + | BH1: 0 | BI1: Breaks 30 | BJ1: 0 | BK1: Breaks 30 + | BL1: 0 | BM1: Breaks 30 | BN1: 0 | BO1: Breaks 30 | BP1: 0
A2: Platz | B2: ↓↑ | C2: Pl.alt | D2: Spielername | E2: Total | F2: -1 | G2: St.-Erg. | H2: HB | I2: T1 | J2: T2 | K2: T3 | L2: T4 | M2: T5 | N2: T6 | O2: T7 | P2: T8 | Q2: T9 | R2: T10 | S2: T11 | T2: T12 | U2: T13 | V2: T14 | W2: T15 | X2: T16 | Y2: T17 | Z2: T18 | AA2: T19 | AB2: T20 | AC2: Spieler | AD2: T 1 | AE2: Spieler | AF2: T 2 | AG2: Spieler | AH2: T 3 | AI2: Spieler | AJ2: T 4 | AK2: Spieler | AL2: T 5 | AM2: Spieler | AN2: T 6 | AO2: Spieler | AP2: T 7 | AQ2: Spieler | AR2: T 8 | AS2: Spieler | AT2: T 9 | AU2: Spieler | AV2: T10 | AW2: Spieler | AX2: T11 | AY2: Spieler | AZ2: T12 | BA2: Spieler | BB2: T13 | BC2: Spieler | BD2: T14 | BE2: Spieler | BF2: T15 | BG2: Spieler | BH2: T16 | BI2: Spieler | BJ2: T17 | BK2: Spieler | BL2: T18 | BM2: Spieler | BN2: T19 | BO2: Spieler | BP2: T20
A3: 1 | B3: =IF(C3="","",C3-A3) -> 0 | C3: 1 | D3: Marco Weber | E3: =I3+J3+K3+L3+M3+N3+O3+P3+Q3+R3+S3+T3+U3+V3+W3+X3+Y3 -> 2015.02717 | F3: =E3-G3 -> 2015.02717 | G3: =INDEX(I3:W3,MATCH(LARGE(I3:W3,COUNTIF(I3:W3,">="&0)),I3:W3,0)) -> 0 | H3: 106 | I3: =SUMIF($AC$3:$AC$59,$D3,$AD$3:$AD$59) -> 185.0066 | J3: =SUMIF($AE$3:$AE$42,$D3,$AF$3:$AF$42) -> 225.007 | K3: =SUMIF($AG$3:$AG$42,$D3,$AH$3:$AH$42) -> 255.00009 | L3: =SUMIF($AI$3:$AI$42,$D3,$AJ$3:$AJ$42) -> 305.00006 | M3: =SUMIF($AK$3:$AK$42,$D3,$AL$3:$AL$42) -> 90.0068 | N3: =SUMIF($AM$3:$AM$42,$D3,$AN$3:$AN$42) -> 230.00013 | O3: =SUMIF($AO$3:$AO$42,$D3,$AP$3:$AP$42) -> 85.00009 | P3: =SUMIF($AQ$3:$AQ$42,$D3,$AR$3:$AR$42) -> 435.0002 | Q3: =SUMIF(AS$3:AS$42,$D3,AT$3:AT$42) -> 205.0062 | R3: =SUMIF(AU$3:AU$42,$D3,AV$3:AV$42) -> 0 | S3: =SUMIF(AW$3:AW$42,$D3,AX$3:AX$42) -> 0 | T3: =SUMIF(AY$3:AY$42,$D3,AZ$3:AZ$42) -> 0 | U3: =SUMIF(BA$3:BA$42,$D3,BB$3:BB$42) -> 0 | V3: =SUMIF(BC$3:BC$42,$D3,BD$3:BD$42) -> 0 | W3: =SUMIF(BE$3:BE$42,$D3,BF$3:BF$42) -> 0 | X3: =SUMIF(BG$3:BG$42,$D3,BH$3:BH$42) -> 0 | Y3: =SUMIF(BI$3:BI$42,$D3,BJ$3:BJ$42) -> 0 | Z3: =SUMIF(BK$3:BK$42,$D3,BL$3:BL$42) -> 0 | AA3: =SUMIF(BM$3:BM$42,$D3,BN$3:BN$42) -> 0 | AB3: =SUMIF(BO$3:BO$42,$D3,BP$3:BP$42) -> 0 | AC3: David Gärtner | AD3: 225.0074 | AE3: Marco Weber | AF3: 225.007 | AG3: Florian Schmidt | AH3: 305.00004 | AI3: Marco Weber | AJ3: 305.00006 | AK3: Aaron Bocksberger | AL3: 210.004 | AM3: Marco Weber | AN3: 230.00013 | AO3: Felix Kirsten | AP3: 220.00014 | AQ3: Marco Weber | AR3: 435.0002 | AS3: Daniel Schneider | AT3: 335.0074 | AU3: Felix Kirsten | AV3: 410.006
A4: 2 | B4: 0 | C4: 2 | D4: Tino Delling | E4: =I4+J4+K4+L4+M4+N4+O4+P4+Q4+R4+S4+T4+U4+V4+W4+X4+Y4 -> 1400.02435 | F4: =E4-G4 -> 1400.02435 | G4: 0 | H4: 63 | I4: =SUMIF($AC$3:$AC$59,$D4,$AD$3:$AD$59) -> 150.0056 | J4: =SUMIF($AE$3:$AE$42,$D4,$AF$3:$AF$42) -> 80.0054 | K4: =SUMIF($AG$3:$AG$42,$D4,$AH$3:$AH$42) -> 130.00013 | L4: 250.00016 | M4: 85.0054 | N4: =SUMIF($AM$3:$AM$42,$D4,$AN$3:$AN$42) -> 100.00006 | O4: 190.00006 | P4: 195.00014 | Q4: 45.004 | R4: =SUMIF(AU$3:AU$42,$D4,AV$3:AV$42) -> 175.0034 | S4: 0 | T4: =SUMIF(AY$3:AY$42,$D4,AZ$3:AZ$42) -> 0 | U4: 0 | V4: =SUMIF(BC$3:BC$42,$D4,BD$3:BD$42) -> 0 | W4: =SUMIF(BE$3:BE$42,$D4,BF$3:BF$42) -> 0 | X4: =SUMIF(BG$3:BG$42,$D4,BH$3:BH$42) -> 0 | Y4: =SUMIF(BI$3:BI$42,$D4,BJ$3:BJ$42) -> 0 | Z4: =SUMIF(BK$3:BK$42,$D4,BL$3:BL$42) -> 0 | AA4: =SUMIF(BM$3:BM$42,$D4,BN$3:BN$42) -> 0 | AB4: =SUMIF(BO$3:BO$42,$D4,BP$3:BP$42) -> 0 | AC4: Marco Weber | AD4: 185.0066 | AE4: David Gärtner | AF4: 170.0074 | AG4: Marco Weber | AH4: 255.00009 | AI4: Tino Delling | AJ4: 250.00016 | AK4: Marec Stachly | AL4: 175.0066 | AM4: Hilmar Habrom | AN4: 160.0001 | AO4: Tino Delling | AP4: 190.00006 | AQ4: Felix Kirsten | AR4: 370.0001 | AS4: Moritz Thomas | AT4: 260.0054 | AU4: Moritz Thomas | AV4: 350.0044
A5: 3 | B5: 0 | C5: 3 | D5: Marec Stachly | E5: =I5+J5+K5+L5+M5+N5+O5+P5+Q5+R5+S5+T5+U5+V5+W5+X5+Y5 -> 1395.03135 | F5: =E5-G5 -> 1395.03135 | G5: 0 | H5: 71 | I5: 70.0064 | J5: 85.0068 | K5: 135.00006 | L5: 135.00012 | M5: 175.0066 | N5: 135.00007 | O5: 110.00002 | P5: 80.00008 | Q5: 170.006 | R5: 300.0052 | S5: 0 | T5: 0 | U5: 0 | V5: 0 | W5: 0 | X5: 0 | Y5: 0 | Z5: 0 | AA5: 0 | AB5: 0 | AC5: Tino Delling | AD5: 150.0056 | AE5: Moritz Thomas | AF5: 150.0062 | AG5: Gustav Hollnagel | AH5: 200.00012 | AI5: Ronny Rejke | AJ5: 195.00017 | AK5: Paul N. Schmidt | AL5: 160.006 | AM5: Moritz Thomas | AN5: 140.00011 | AO5: Gustav Hollnagel | AP5: 155.00015 | AQ5: Thomas Krause | AR5: 315.00004 | AS5: Marco Weber | AT5: 205.0062 | AU5: Marec Stachly | AV5: 300.0052
A6: 4 | B6: 1 | C6: 5 | D6: Felix Kirsten | E6: =I6+J6+K6+L6+M6+N6+O6+P6+Q6+R6+S6+T6+U6+V6+W6 -> 1140.01344 | G6: 0 | H6: 67 | I6: 0 | J6: 0 | K6: 0 | L6: 0 | M6: 0 | N6: 0 | O6: 220.00014 | P6: 370.0001 | Q6: 140.0072 | R6: 410.006 | S6: 0 | T6: 0 | U6: 0 | V6: 0 | W6: 0 | X6: 0 | Y6: 0 | Z6: 0 | AA6: 0 | AB6: 0 | AC6: Holger Hänel | AD6: 125.007 | AE6: Aaron Bocksberger | AF6: 135.004 | AG6: Marko Straßburger | AH6: 165.00002 | AI6: Florian Schmidt | AJ6: 165.00009 | AK6: Michael Kandler | AL6: 120.0062 | AM6: Marec Stachly | AN6: 135.00007 | AO6: Wei Chen | AP6: 130.0001 | AQ6: Gustav Hollnagel | AR6: 255.00013 | AS6: Marec Stachly | AT6: 170.006 | AU6: Christopher Buße | AV6: 240.007
A7: 5 | B7: 2 | C7: 7 | D7: Moritz Thomas | E7: =I7+J7+K7+L7+M7+N7+O7+P7+Q7+R7+S7+T7+U7+V7+W7+X7+Y7 -> 990.02191 | F7: =E7-G7 -> 990.02191 | G7: 0 | H7: 61 | I7: 90.0058 | J7: 150.0062 | K7: 0 | L7: 0 | M7: 0 | N7: 140.00011 | O7: 0 | P7: 0 | Q7: 260.0054 | R7: 350.0044 | S7: 0 | T7: 0 | U7: 0 | V7: 0 | W7: 0 | X7: 0 | Y7: 0 | Z7: 0 | AA7: 0 | AB7: 0 | AC7: Moritz Thomas | AD7: 90.0058 | AE7: Marec Stachly | AF7: 85.0068 | AG7: Sven Ohlenroth | AH7: 140.00016 | AI7: Paul N. Schmidt | AJ7: 145.00002 | AK7: Marco Weber | AL7: 90.0068 | AM7: Tino Delling | AN7: 100.00006 | AO7: Marec Stachly | AP7: 110.00002 | AQ7: Tino Delling | AR7: 195.00014 | AS7: Andy Swennen | AT7: 145.004 | AU7: Aaron Bocksberger | AV7: 180.004
A8: 6 | B8: -2 | C8: 4 | D8: Gustav Hollnagel | E8: 935.01299 | G8: 0 | H8: 51 | I8: 0 | J8: 0 | K8: 200.00012 | L8: 70.00019 | M8: 0 | N8: 0 | O8: 155.00015 | P8: 255.00013 | Q8: 135.0068 | R8: 120.0056 | S8: 0 | T8: 0 | U8: 0 | V8: 0 | W8: 0 | X8: 0 | Y8: 0 | Z8: 0 | AA8: 0 | AB8: 0 | AC8: Aaron Bocksberger | AD8: 80.004 | AE8: Tino Delling | AF8: 80.0054 | AG8: Aaron Bocksberger | AH8: 135.00018 | AI8: Marec Stachly | AJ8: 135.00012 | AK8: Tino Delling | AL8: 85.0054 | AM8: Jan Utikal | AN8: 100.00002 | AO8: Thomas Krause | AP8: 90.00013 | AQ8: Rene Scheurer | AR8: 185.00019 | AS8: Felix Kirsten | AT8: 140.0072 | AU8: Paul N. Schmidt | AV8: 180.004
A9: 7 | B9: -1 | C9: 6 | D9: Michael Kandler | E9: 795.02904 | G9: 0 | H9: 40 | I9: 70.006 | J9: 25.0064 | K9: 85.00014 | L9: 0 | M9: 120.0062 | N9: 45.00004 | O9: 85.00004 | P9: 185.00002 | Q9: 70.0056 | R9: 110.0046 | S9: 0 | T9: 0 | U9: 0 | V9: 0 | W9: 0 | X9: 0 | Y9: 0 | Z9: 0 | AA9: 0 | AB9: 0 | AC9: Marec Stachly | AD9: 70.0064 | AE9: Hilmar Habrom | AF9: 70.0072 | AG9: Marec Stachly | AH9: 135.00006 | AI9: Sven Ohlenroth | AJ9: 125.00001 | AK9: Andreas Hollin | AL9: 80.0078 | AM9: Frank Jacob | AN9: 85.00014 | AO9: Marco Weber | AP9: 85.00009 | AQ9: Michael Kandler | AR9: 185.00002 | AS9: Hannes Hermsdorf | AT9: 140.0066 | AU9: Ronny Rejke | AV9: 180.0036
A10: 8 | B10: 0 | C10: 8 | D10: Aaron Bocksberger | E10: 740.01618 | F10: =E10-G10 -> 740.01618 | G10: 0 | H10: 56 | I10: 80.004 | J10: 135.004 | K10: 135.00018 | L10: 0 | M10: 210.004 | N10: 0 | O10: 0 | P10: 0 | Q10: 0 | R10: 180.004 | S10: 0 | T10: 0 | U10: 0 | V10: 0 | W10: 0 | X10: 0 | Y10: 0 | Z10: 0 | AA10: 0 | AB10: 0 | AC10: Michael Kandler | AD10: 70.006 | AE10: Thomas Krause | AF10: 70.0056 | AG10: Tino Delling | AH10: 130.00013 | AI10: Frank Müller | AJ10: 110.00011 | AK10: Behnam Ahmadi | AL10: 70.0076 | AM10: Christopher Jaritz | AN10: 85.00008 | AO10: Michael Kandler | AP10: 85.00004 | AQ10: Marko Straßburger | AR10: 175.00025 | AS10: Gustav Hollnagel | AT10: 135.0068 | AU10: Tino Delling | AV10: 175.0034
A11: 9 | B11: 0 | C11: 9 | D11: Marko Straßburger | E11: 660.02384 | F11: 660.02384 | G11: 0 | H11: 36 | I11: 25.0062 | J11: 25.0066 | K11: 165.00002 | L11: 0 | M11: 0 | N11: 35.00012 | O11: 35.00005 | P11: 175.00025 | Q11: 85.0058 | R11: 115.0048 | S11: 0 | T11: 0 | U11: 0 | V11: 0 | W11: 0 | X11: 0 | Y11: 0 | Z11: 0 | AA11: 0 | AB11: 0 | AC11: Andreas Hartung | AD11: 40.0078 | AE11: Christopher Jaritz | AF11: 35.0076 | AG11: Michael Kandler | AH11: 85.00014 | AI11: Andy Swennen | AJ11: 80.00005 | AK11: Christopher Jaritz | AL11: 35.0074 | AM11: Michael Kandler | AN11: 45.00004 | AO11: Andy Swennen | AP11: 50.00008 | AQ11: Christopher Buße | AR11: 80.00017 | AS11: Jan Utikal | AT11: 90.0064 | AU11: Gustav Hollnagel | AV11: 120.0056
A12: 10 | B12: 3 | C12: 13 | D12: Andy Swennen | E12: 540.01185 | F12: 540.01185 | G12: 0 | H12: 57 | I12: 0 | J12: 0 | K12: 75.0001 | L12: 80.00005 | M12: 0 | N12: 0 | O12: 50.00008 | P12: 75.00022 | Q12: 145.004 | R12: 115.0074 | S12: 0 | T12: 0 | U12: 0 | V12: 0 | W12: 0 | X12: 0 | Y12: 0 | Z12: 0 | AA12: 0 | AB12: 0 | AC12: Dominik Rossmann | AD12: 30.0072 | AE12: Andreas Hartung | AF12: 30.0078 | AG12: Sylvio Fischer | AH12: 80.00019 | AI12: Christopher Jaritz | AJ12: 75.00007 | AK12: Steffen Eilenstein | AL12: 30.0058 | AM12: Marko Straßburger | AN12: 35.00012 | AO12: Marcus Müller | AP12: 45.00007 | AQ12: Marec Stachly | AR12: 80.00008 | AS12: Marko Straßburger | AT12: 85.0058 | AU12: Alex Nikitin | AV12: 115.0078
A13: 11 | B13: -1 | C13: 10 | D13: Thomas Krause | E13: 505.00584 | F13: 505.00584 | G13: 0 | H13: 38 | I13: 0 | J13: 70.0056 | K13: 30.00007 | L13: 0 | M13: 0 | N13: 0 | O13: 90.00013 | P13: 315.00004 | Q13: 0 | R13: 0 | S13: 0 | T13: 0 | U13: 0 | V13: 0 | W13: 0 | X13: 0 | Y13: 0 | Z13: 0 | AA13: 0 | AB13: 0 | AC13: Jörg Bonitz | AD13: 25.0068 | AE13: Marko Straßburger | AF13: 25.0066 | AG13: David Gärtner | AH13: 80.00008 | AI13: Gustav Hollnagel | AJ13: 70.00019 | AK13: Enayat Haidary | AL13: 25.0072 | AM13: Thomas Metzler | AN13: 35.00005 | AO13: Marko Straßburger | AP13: 35.00005 | AQ13: Christian Jungk | AR13: 80.00005 | AS13: Thomas Metzler | AT13: 85.0044 | AU13: Andy Swennen | AV13: 115.0074
A14: 12 | B14: 5 | C14: 17 | D14: Paul N. Schmidt | E14: 485.01002 | F14: 485.01002 | G14: 0 | H14: 59 | I14: 0 | J14: 0 | K14: 0 | L14: 145.00002 | M14: 160.006 | N14: 0 | O14: 0 | P14: 0 | Q14: 0 | R14: 180.004 | S14: 0 | T14: 0 | U14: 0 | V14: 0 | W14: 0 | X14: 0 | Y14: 0 | Z14: 0 | AA14: 0 | AB14: 0 | AC14: Marko Straßburger | AD14: 25.0062 | AE14: Michael Kandler | AF14: 25.0064 | AG14: Andreas Hartung | AH14: 80.00005 | AI14: Andreas Hartung | AJ14: 40.00018 | AK14: Frank Müller | AL14: 20.007 | AM14: Paul Arthur Jeroch | AN14: 25.00009 | AO14: Thomas Salomon | AP14: 30.00012 | AQ14: Andy Swennen | AR14: 75.00022 | AS14: Michael Kandler | AT14: 70.0056 | AU14: Justin Gruner | AV14: 115.0054
A15: 13 | B15: -2 | C15: 11 | D15: David Gärtner | E15: 475.01488 | F15: 475.01488 | G15: 0 | H15: 67 | I15: 225.0074 | J15: 170.0074 | K15: 80.00008 | L15: 0 | M15: 0 | N15: 0 | O15: 0 | P15: 0 | Q15: 0 | R15: 0 | S15: 0 | T15: 0 | U15: 0 | V15: 0 | W15: 0 | X15: 0 | Y15: 0 | Z15: 0 | AA15: 0 | AB15: 0 | AC15: Christopher Jaritz | AD15: 20.0076 | AE15: Raiko Förster | AF15: 25.006 | AG15: Andy Swennen | AH15: 75.0001 | AI15: Frank Brömel | AJ15: 40.00013 | AK15: Mario Beetz | AL15: 20.0064 | AM15: Joel Fandrei | AN15: 20.00003 | AO15: Chris Banks | AP15: 25.00011 | AQ15: Christian Zenß | AR15: 75.00015 | AS15: Christopher Jaritz | AT15: 50.0076 | AU15: Marko Straßburger | AV15: 115.0048
A16: 14 | B16: -2 | C16: 12 | D16: Florian Schmidt | E16: 470.00013 | F16: 470.00013 | G16: 0 | H16: 33 | I16: 0 | J16: 0 | K16: 305.00004 | L16: 165.00009 | M16: 0 | N16: 0 | O16: 0 | P16: 0 | Q16: 0 | R16: 0 | S16: 0 | T16: 0 | U16: 0 | V16: 0 | W16: 0 | X16: 0 | Y16: 0 | Z16: 0 | AA16: 0 | AB16: 0 | AE16: Sven Ohlenroth | AF16: 25.0058 | AG16: Ronny Rejke | AH16: 75.00003 | AI16: Mario Beetz | AJ16: 40.00004 | AK16: Sven Isler | AL16: 20.0056 | AO16: Frank Brömel | AP16: 25.00003 | AQ16: Rene Reinhardt | AR16: 75.00006 | AS16: Sven Ohlenroth | AT16: 50.0046 | AU16: Christopher Jaritz | AV16: 110.0068
A17: 15 | B17: 0 | C17: 15 | D17: Christopher Jaritz | E17: 450.03716 | F17: 450.03716 | G17: 0 | H17: 41 | I17: 20.0076 | J17: 35.0076 | K17: 40.00001 | L17: 75.00007 | M17: 35.0074 | N17: 85.00008 | O17: 0 | P17: 0 | Q17: 50.0076 | R17: 110.0068 | S17: 0 | T17: 0 | U17: 0 | V17: 0 | W17: 0 | X17: 0 | Y17: 0 | Z17: 0 | AA17: 0 | AB17: 0 | AG17: Frank Müller | AH17: 70.00011 | AI17: Sylvio Fischer | AJ17: 35.00003 | AQ17: Thomas Brünner | AR17: 70.00024 | AS17: Tino Delling | AT17: 45.004 | AU17: Fabian Schulze | AV17: 110.0064
A18: 16 | B18: 2 | C18: 18 | D18: Ronny Rejke | E18: 450.0038 | F18: 450.0038 | G18: 0 | I18: 0 | J18: 0 | K18: 75.00003 | L18: 195.00017 | M18: 0 | N18: 0 | O18: 0 | P18: 0 | Q18: 0 | R18: 180.0036 | S18: 0 | T18: 0 | U18: 0 | V18: 0 | W18: 0 | X18: 0 | Y18: 0 | Z18: 0 | AA18: 0 | AB18: 0 | AG18: Thomas Nierobisch | AH18: 65.00017 | AI18: Ronald Ratz | AJ18: 30.00014 | AQ18: Thomas Metzler | AR18: 70.00021 | AS18: Frank Brömel | AT18: 40.007 | AU18: Michael Kandler | AV18: 110.0046
A19: 17 | B19: -3 | C19: 14 | D19: Sven Ohlenroth | E19: 405.01066 | F19: 405.01066 | G19: 0 | H19: 36 | I19: 0 | J19: 25.0058 | K19: 140.00016 | L19: 125.00001 | M19: 0 | N19: 0 | O19: 0 | P19: 65.00009 | Q19: 50.0046 | R19: 0 | S19: 0 | T19: 0 | U19: 0 | V19: 0 | W19: 0 | X19: 0 | Y19: 0 | Z19: 0 | AA19: 0 | AB19: 0 | AG19: Christopher Jaritz | AH19: 40.00001 | AI19: Thomas Nierobisch | AJ19: 30.00008 | AQ19: Andreas Hartung | AR19: 70.00012 | AS19: Peter Kloppisch | AT19: 40.005 | AU19: Mario Gehrke | AV19: 60.005
A20: 18 | B20: -2 | C20: 16 | D20: Daniel Schneider | E20: =I20+J20+K20+L20+M20+N20+O20+P20+Q20+R20+S20+T20+U20+V20+W20 -> 335.0074 | G20: 0 | H20: 67 | I20: 0 | J20: 0 | K20: 0 | L20: 0 | M20: 0 | N20: 0 | O20: 0 | P20: 0 | Q20: 335.0074 | R20: 0 | S20: 0 | T20: 0 | U20: 0 | V20: 0 | W20: 0 | X20: 0 | Y20: 0 | Z20: 0 | AA20: 0 | AB20: 0 | AG20: Sebastian Födisch | AH20: 35.0002 | AQ20: Sven Ohlenroth | AR20: 65.00009 | AS20: Thomas Salomon | AT20: 40.0042 | AU20: Andreas Hartung | AV20: 55.0076
A21: 19 | B21: 15 | C21: 34 | D21: Christopher Buße | E21: =I21+J21+K21+L21+M21+N21+O21+P21+Q21+R21+S21+T21+U21+V21+W21+X21+Y21 -> 320.00717 | G21: 0 | H21: 36 | I21: 0 | J21: 0 | K21: 0 | L21: 0 | M21: 0 | N21: 0 | O21: 0 | P21: 80.00017 | Q21: 0 | R21: 240.007 | S21: 0 | T21: 0 | U21: 0 | V21: 0 | W21: 0 | X21: 0 | Y21: 0 | Z21: 0 | AA21: 0 | AB21: 0 | AG21: Frank Brömel | AH21: 30.00015 | AQ21: Nicolas Schweigel | AR21: 60.00023 | AS21: Paul Arthur Jeroch | AT21: 35.0052 | AU21: Behnam Az | AV21: 55.0072
A22: 20 | B22: -1 | C22: 19 | D22: Andreas Hartung | E22: =I22+J22+K22+L22+M22+N22+O22+P22+Q22+R22+S22+T22+U22+V22+W22+X22+Y22 -> 315.02355 | F22: =E22-G22 -> 315.02355 | G22: 0 | I22: 40.0078 | J22: 30.0078 | K22: 80.00005 | L22: 40.00018 | M22: 0 | N22: 0 | O22: 0 | P22: 70.00012 | Q22: 0 | R22: 55.0076 | S22: 0 | T22: 0 | U22: 0 | V22: 0 | W22: 0 | X22: 0 | Y22: 0 | Z22: 0 | AA22: 0 | AB22: 0 | AG22: Thomas Krause | AH22: 30.00007 | AQ22: Frank Brömel | AR22: 60.00018 | AS22: Wei Chen | AT22: 35.0038 | AU22: Faiz Elham | AV22: 55.0062
A23: 21 | B23: 1 | C23: 22 | D23: Frank Brömel | E23: =I23+J23+K23+L23+M23+N23+O23+P23+Q23+R23+S23+T23+U23+V23+W23+X23+Y23 -> 245.01329 | F23: =E23-G23 -> 245.01329 | G23: 0 | I23: 0 | J23: 0 | K23: 30.00015 | L23: 40.00013 | M23: 0 | N23: 0 | O23: 25.00003 | P23: 60.00018 | Q23: 40.007 | R23: 50.0058 | S23: 0 | T23: 0 | U23: 0 | V23: 0 | W23: 0 | X23: 0 | Y23: 0 | Z23: 0 | AA23: 0 | AB23: 0 | AQ23: Rainer Jahn | AR23: 60.00016 | AS23: Christoph Richter | AT23: 30.0078 | AU23: Paul Arthur Jeroch | AV23: 55.0042
A24: 22 | B24: -2 | C24: 20 | D24: Hilmar Habrom | E24: =I24+J24+K24+L24+M24+N24+O24+P24+Q24+R24+S24+T24+U24+V24+W24+X24+Y24 -> 230.0073 | F24: =E24-G24 -> 230.0073 | G24: 0 | H24: 43 | I24: 0 | J24: 70.0072 | K24: 0 | L24: 0 | M24: 0 | N24: 160.0001 | O24: 0 | P24: 0 | Q24: 0 | R24: 0 | S24: 0 | T24: 0 | U24: 0 | V24: 0 | W24: 0 | X24: 0 | Y24: 0 | Z24: 0 | AA24: 0 | AB24: 0 | AQ24: Mario Gehrke | AR24: 60.00003 | AS24: Saman Jasemi | AT24: 30.0048 | AU24: Enayat Haidary | AV24: 50.0066
A25: 23 | B25: -2 | C25: 21 | D25: Frank Müller | E25: =I25+J25+K25+L25+M25+N25+O25+P25+Q25+R25+S25+T25+U25+V25+W25+X25+Y25 -> 200.00722 | F25: =E25-G25 -> 200.00722 | G25: 0 | I25: 0 | J25: 0 | K25: 70.00011 | L25: 110.00011 | M25: 20.007 | N25: 0 | O25: 0 | P25: 0 | Q25: 0 | R25: 0 | S25: 0 | T25: 0 | U25: 0 | V25: 0 | W25: 0 | X25: 0 | Y25: 0 | Z25: 0 | AA25: 0 | AB25: 0 | AQ25: Paul Arthur Jeroch | AR25: 55.00007 | AU25: Frank Brömel | AV25: 50.0058
A26: 24 | B26: -1 | C26: 23 | D26: Jan Utikal | E26: =I26+J26+K26+L26+M26+N26+O26+P26+Q26+R26+S26+T26+U26+V26+W26 -> 190.00642 | G26: 0 | H26: 59 | I26: 0 | J26: =SUMIF($AE$3:$AE$42,$D26,$AF$3:$AF$42) -> 0 | K26: =SUMIF($AG$3:$AG$42,$D26,$AH$3:$AH$42) -> 0 | L26: =SUMIF($AI$3:$AI$42,$D26,$AJ$3:$AJ$42) -> 0 | M26: =SUMIF($AK$3:$AK$42,$D26,$AL$3:$AL$42) -> 0 | N26: =SUMIF($AM$3:$AM$42,$D26,$AN$3:$AN$42) -> 100.00002 | O26: =SUMIF($AO$3:$AO$42,$D26,$AP$3:$AP$42) -> 0 | P26: =SUMIF($AQ$3:$AQ$42,$D26,$AR$3:$AR$42) -> 0 | Q26: =SUMIF(AS$3:AS$42,$D26,AT$3:AT$42) -> 90.0064 | R26: =SUMIF(AU$3:AU$42,$D26,AV$3:AV$42) -> 0 | S26: 0 | T26: =SUMIF(AY$3:AY$42,$D26,AZ$3:AZ$42) -> 0 | U26: =SUMIF(BA$3:BA$42,$D26,BB$3:BB$42) -> 0 | V26: 0 | W26: 0 | X26: 0 | Y26: 0 | Z26: 0 | AA26: 0 | AB26: 0 | AU26: Raiko Förster | AV26: 50.0038
A27: 25 | B27: -1 | C27: 24 | D27: Thomas Metzler | E27: =I27+J27+K27+L27+M27+N27+O27+P27+Q27+R27+S27+T27+U27+V27+W27+X27+Y27 -> 190.00466 | G27: 0 | I27: 0 | J27: =SUMIF($AE$3:$AE$42,$D27,$AF$3:$AF$42) -> 0 | K27: =SUMIF($AG$3:$AG$42,$D27,$AH$3:$AH$42) -> 0 | L27: =SUMIF($AI$3:$AI$42,$D27,$AJ$3:$AJ$42) -> 0 | M27: =SUMIF($AK$3:$AK$42,$D27,$AL$3:$AL$42) -> 0 | N27: =SUMIF($AM$3:$AM$42,$D27,$AN$3:$AN$42) -> 35.00005 | O27: =SUMIF($AO$3:$AO$42,$D27,$AP$3:$AP$42) -> 0 | P27: =SUMIF($AQ$3:$AQ$42,$D27,$AR$3:$AR$42) -> 70.00021 | Q27: =SUMIF(AS$3:AS$42,$D27,AT$3:AT$42) -> 85.0044 | R27: =SUMIF(AU$3:AU$42,$D27,AV$3:AV$42) -> 0 | S27: 0 | T27: =SUMIF(AY$3:AY$42,$D27,AZ$3:AZ$42) -> 0 | U27: =SUMIF(BA$3:BA$42,$D27,BB$3:BB$42) -> 0 | V27: 0 | W27: 0 | X27: 0 | Y27: 0 | Z27: 0 | AA27: 0 | AB27: 0
A28: 26 | B28: -1 | C28: 25 | D28: Rene Scheurer | E28: =I28+J28+K28+L28+M28+N28+O28+P28+Q28+R28+S28+T28+U28+V28+W28+X28+Y28 -> 185.00019 | F28: =E28-G28 -> 185.00019 | G28: 0 | I28: 0 | J28: 0 | K28: 0 | L28: 0 | M28: 0 | N28: 0 | O28: 0 | P28: 185.00019 | Q28: 0 | R28: 0 | S28: 0 | T28: 0 | U28: 0 | V28: 0 | W28: 0 | X28: 0 | Y28: 0 | Z28: 0 | AA28: 0 | AB28: 0
A29: 27 | B29: 2 | C29: 29 | D29: Paul Arthur Jeroch | E29: =I29+J29+K29+L29+M29+N29+O29+P29+Q29+R29+S29+T29+U29+V29+W29 -> 170.00956 | G29: 0 | I29: 0 | J29: 0 | K29: 0 | L29: 0 | M29: 0 | N29: 25.00009 | O29: 0 | P29: 55.00007 | Q29: 35.0052 | R29: 55.0042 | S29: 0 | T29: 0 | U29: 0 | V29: 0 | W29: 0 | X29: 0 | Y29: 0 | Z29: 0 | AA29: 0 | AB29: 0
A30: 28 | B30: -2 | C30: 26 | D30: Wei Chen | E30: =I30+J30+K30+L30+M30+N30+O30+P30+Q30+R30+S30+T30+U30+V30+W30+X30+Y30 -> 165.0039 | G30: 0 | I30: 0 | J30: 0 | K30: 0 | L30: 0 | M30: 0 | N30: 0 | O30: 130.0001 | P30: 0 | Q30: 35.0038 | R30: 0 | S30: 0 | T30: 0 | U30: 0 | V30: 0 | W30: 0 | X30: 0 | Y30: 0 | Z30: 0 | AA30: 0 | AB30: 0
A31: 29 | B31: -2 | C31: 27 | D31: Hannes Hermsdorf | E31: =I31+J31+K31+L31+M31+N31+O31+P31+Q31+R31+S31+T31+U31+V31+W31 -> 140.0066 | G31: 0 | H31: 41 | I31: 0 | J31: 0 | K31: 0 | L31: 0 | M31: 0 | N31: 0 | O31: 0 | P31: 0 | Q31: 140.0066 | R31: 0 | S31: 0 | T31: 0 | U31: 0 | V31: 0 | W31: 0 | X31: 0 | Y31: 0 | Z31: 0 | AA31: 0 | AB31: 0
A32: 30 | B32: -2 | C32: 28 | D32: Holger Hänel | E32: =I32+J32+K32+L32+M32+N32+O32+P32+Q32+R32+S32+T32+U32+V32+W32+X32+Y32 -> 125.007 | F32: =E32-G32 -> 125.007 | G32: 0 | H32: 42 | I32: 125.007 | J32: 0 | K32: 0 | L32: 0 | M32: 0 | N32: 0 | O32: 0 | P32: 0 | Q32: 0 | R32: 0 | S32: 0 | T32: 0 | U32: 0 | V32: 0 | W32: 0 | X32: 0 | Y32: 0 | Z32: 0 | AA32: 0 | AB32: 0
A33: 31 | D33: Mario Gehrke | E33: =I33+J33+K33+L33+M33+N33+O33+P33+Q33+R33+S33+T33+U33+V33+W33 -> 120.00503 | G33: 0 | I33: 0 | J33: 0 | K33: 0 | L33: 0 | M33: 0 | N33: 0 | O33: 0 | P33: 60.00003 | Q33: 0 | R33: 60.005 | S33: 0 | T33: 0 | U33: 0 | V33: 0 | W33: 0 | X33: 0 | Y33: 0 | Z33: 0 | AA33: 0 | AB33: 0
A34: 32 | D34: Alex Nikitin | E34: =I34+J34+K34+L34+M34+N34+O34+P34+Q34+R34+S34+T34+U34+V34+W34 -> 115.0078 | G34: 0 | I34: 0 | J34: 0 | K34: 0 | L34: 0 | M34: 0 | N34: 0 | O34: 0 | P34: 0 | Q34: 0 | R34: 115.0078 | S34: 0 | T34: 0 | U34: 0 | V34: 0 | W34: 0 | X34: 0 | Y34: 0 | Z34: 0 | AA34: 0 | AB34: 0
A35: 33 | D35: Justin Gruner | E35: =I35+J35+K35+L35+M35+N35+O35+P35+Q35+R35+S35+T35+U35+V35+W35 -> 115.0054 | G35: =INDEX(I35:W35,MATCH(LARGE(I35:W35,COUNTIF(I35:W35,">="&0)),I35:W35,0)) -> 0 | I35: 0 | J35: 0 | K35: 0 | L35: 0 | M35: 0 | N35: 0 | O35: 0 | P35: 0 | Q35: 0 | R35: 115.0054 | S35: =SUMIF(AW$3:AW$42,$D35,AX$3:AX$42) -> 0 | T35: 0 | U35: 0 | V35: 0 | W35: 0 | X35: 0 | Y35: 0 | Z35: 0 | AA35: 0 | AB35: 0
A36: 34 | B36: -4 | C36: 30 | D36: Sylvio Fischer | E36: =I36+J36+K36+L36+M36+N36+O36+P36+Q36+R36+S36+T36+U36+V36+W36+X36+Y36 -> 115.00022 | F36: =E36-G36 -> 115.00022 | G36: 0 | I36: 0 | J36: 0 | K36: 80.00019 | L36: 35.00003 | M36: 0 | N36: 0 | O36: 0 | P36: 0 | Q36: 0 | R36: 0 | S36: 0 | T36: 0 | U36: 0 | V36: 0 | W36: 0 | X36: 0 | Y36: 0 | Z36: 0 | AA36: 0 | AB36: 0
A37: 35 | D37: Fabian Schulze | E37: =I37+J37+K37+L37+M37+N37+O37+P37+Q37+R37+S37+T37+U37+V37+W37 -> 110.0064 | G37: 0 | I37: 0 | J37: 0 | K37: 0 | L37: 0 | M37: 0 | N37: 0 | O37: 0 | P37: 0 | Q37: 0 | R37: 110.0064 | S37: 0 | T37: 0 | U37: 0 | V37: 0 | W37: 0 | X37: 0 | Y37: 0 | Z37: 0 | AA37: 0 | AB37: 0
A38: 36 | B38: -5 | C38: 31 | D38: Thomas Nierobisch | E38: =I38+J38+K38+L38+M38+N38+O38+P38+Q38+R38+S38+T38+U38+V38+W38+X38+Y38 -> 95.00025 | G38: 0 | I38: 0 | J38: 0 | K38: 65.00017 | L38: 30.00008 | M38: 0 | N38: 0 | O38: 0 | P38: 0 | Q38: 0 | R38: 0 | S38: 0 | T38: 0 | U38: 0 | V38: 0 | W38: 0 | X38: 0 | Y38: 0 | Z38: 0 | AA38: 0 | AB38: 0
A39: 37 | B39: -5 | C39: 32 | D39: Frank Jacob | E39: =I39+J39+K39+L39+M39+N39+O39+P39+Q39+R39+S39+T39+U39+V39+W39+X39+Y39 -> 85.00014 | G39: 0 | H39: 46 | I39: 0 | J39: 0 | K39: 0 | L39: 0 | M39: 0 | N39: 85.00014 | O39: 0 | P39: 0 | Q39: 0 | R39: 0 | S39: 0 | T39: 0 | U39: 0 | V39: 0 | W39: 0 | X39: 0 | Y39: 0 | Z39: 0 | AA39: 0 | AB39: 0
A40: 38 | B40: -5 | C40: 33 | D40: Andreas Hollin | E40: =I40+J40+K40+L40+M40+N40+O40+P40+Q40+R40+S40+T40+U40+V40+W40+X40+Y40 -> 80.0078 | F40: =E40-G40 -> 80.0078 | G40: 0 | I40: 0 | J40: 0 | K40: 0 | L40: 0 | M40: 80.0078 | N40: 0 | O40: 0 | P40: 0 | Q40: 0 | R40: 0 | S40: 0 | T40: 0 | U40: 0 | V40: 0 | W40: 0 | X40: 0 | Y40: 0 | Z40: 0 | AA40: 0 | AB40: 0
A41: 39 | B41: -4 | C41: 35 | D41: Christian Jungk | E41: =I41+J41+K41+L41+M41+N41+O41+P41+Q41+R41+S41+T41+U41+V41+W41 -> 80.00005 | G41: 0 | I41: 0 | J41: 0 | K41: 0 | L41: 0 | M41: 0 | N41: 0 | O41: 0 | P41: 80.00005 | Q41: 0 | R41: 0 | S41: 0 | T41: 0 | U41: 0 | V41: 0 | W41: 0 | X41: 0 | Y41: 0 | Z41: 0 | AA41: 0 | AB41: 0
A42: 40 | B42: 12 | C42: 52 | D42: Enayat Haidary | E42: =I42+J42+K42+L42+M42+N42+O42+P42+Q42+R42+S42+T42+U42+V42+W42 -> 75.0138 | G42: 0 | I42: 0 | J42: 0 | K42: 0 | L42: 0 | M42: 25.0072 | N42: 0 | O42: 0 | P42: 0 | Q42: 0 | R42: 50.0066 | S42: 0 | T42: 0 | U42: 0 | V42: 0 | W42: 0 | X42: 0 | Y42: 0 | Z42: 0 | AA42: 0 | AB42: 0
A43: 41 | B43: 13 | C43: 54 | D43: Raiko Förster | E43: =I43+J43+K43+L43+M43+N43+O43+P43+Q43+R43+S43+T43+U43+V43+W43+X43+Y43 -> 75.0098 | G43: 0 | I43: 0 | J43: 25.006 | K43: 0 | L43: 0 | M43: 0 | N43: 0 | O43: 0 | P43: 0 | Q43: 0 | R43: 50.0038 | S43: 0 | T43: 0 | U43: 0 | V43: 0 | W43: 0 | X43: 0 | Y43: 0 | Z43: 0 | AA43: 0 | AB43: 0
A44: 42 | B44: -6 | C44: 36 | D44: Christian Zenß | E44: =I44+J44+K44+L44+M44+N44+O44+P44+Q44+R44+S44+T44+U44+V44+W44+X44+Y44 -> 75.00015 | G44: 0 | I44: 0 | J44: 0 | K44: 0 | L44: 0 | M44: 0 | N44: 0 | O44: 0 | P44: 75.00015 | Q44: 0 | R44: 0 | S44: 0 | T44: 0 | U44: 0 | V44: 0 | W44: 0 | X44: 0 | Y44: 0 | Z44: 0 | AA44: 0 | AB44: 0
A45: 43 | B45: -6 | C45: 37 | D45: Rene Reinhardt | E45: =I45+J45+K45+L45+M45+N45+O45+P45+Q45+R45+S45+T45+U45+V45+W45+X45+Y45 -> 75.00006 | F45: =E45-G45 -> 75.00006 | G45: 0 | I45: =SUMIF($AC$3:$AC$59,$D45,$AD$3:$AD$59) -> 0 | J45: =SUMIF($AE$3:$AE$42,$D45,$AF$3:$AF$42) -> 0 | K45: =SUMIF($AG$3:$AG$42,$D45,$AH$3:$AH$42) -> 0 | L45: =SUMIF($AI$3:$AI$42,$D45,$AJ$3:$AJ$42) -> 0 | M45: =SUMIF($AK$3:$AK$42,$D45,$AL$3:$AL$42) -> 0 | N45: =SUMIF($AM$3:$AM$42,$D45,$AN$3:$AN$42) -> 0 | O45: =SUMIF($AO$3:$AO$42,$D45,$AP$3:$AP$42) -> 0 | P45: =SUMIF($AQ$3:$AQ$42,$D45,$AR$3:$AR$42) -> 75.00006 | Q45: =SUMIF(AS$3:AS$42,$D45,AT$3:AT$42) -> 0 | R45: =SUMIF(AU$3:AU$42,$D45,AV$3:AV$42) -> 0 | S45: 0 | T45: =SUMIF(AY$3:AY$42,$D45,AZ$3:AZ$42) -> 0 | U45: =SUMIF(BA$3:BA$42,$D45,BB$3:BB$42) -> 0 | V45: 0 | W45: 0 | X45: 0 | Y45: 0 | Z45: 0 | AA45: 0 | AB45: 0
A46: 44 | B46: -6 | C46: 38 | D46: Behnam Ahmadi | E46: =I46+J46+K46+L46+M46+N46+O46+P46+Q46+R46+S46+T46+U46+V46+W46 -> 70.0076 | G46: 0 | I46: 0 | J46: 0 | K46: 0 | L46: 0 | M46: 70.0076 | N46: 0 | O46: 0 | P46: 0 | Q46: 0 | R46: 0 | S46: 0 | T46: 0 | U46: 0 | V46: 0 | W46: 0 | X46: 0 | Y46: 0 | Z46: 0 | AA46: 0 | AB46: 0
A47: 45 | B47: -6 | C47: 39 | D47: Thomas Salomon | E47: =I47+J47+K47+L47+M47+N47+O47+P47+Q47+R47+S47+T47+U47+V47+W47 -> 70.00432 | G47: 0 | I47: 0 | J47: 0 | K47: 0 | L47: 0 | M47: 0 | N47: 0 | O47: 30.00012 | P47: 0 | Q47: 40.0042 | R47: 0 | S47: 0 | T47: 0 | U47: 0 | V47: 0 | W47: 0 | X47: 0 | Y47: 0 | Z47: 0 | AA47: 0 | AB47: 0
A48: 46 | B48: -6 | C48: 40 | D48: Thomas Brünner | E48: =I48+J48+K48+L48+M48+N48+O48+P48+Q48+R48+S48+T48+U48+V48+W48+X48+Y48 -> 70.00024 | F48: =E48-G48 -> 70.00024 | G48: 0 | H48: 30 | I48: 0 | J48: 0 | K48: 0 | L48: 0 | M48: 0 | N48: 0 | O48: 0 | P48: 70.00024 | Q48: 0 | R48: 0 | S48: 0 | T48: 0 | U48: 0 | V48: 0 | W48: 0 | X48: 0 | Y48: 0 | Z48: 0 | AA48: 0 | AB48: 0
A49: 47 | B49: -6 | C49: 41 | D49: Mario Beetz | E49: =I49+J49+K49+L49+M49+N49+O49+P49+Q49+R49+S49+T49+U49+V49+W49+X49+Y49 -> 60.00644 | F49: =E49-G49 -> 60.00644 | G49: 0 | I49: 0 | J49: 0 | K49: 0 | L49: 40.00004 | M49: 20.0064 | N49: 0 | O49: 0 | P49: 0 | Q49: 0 | R49: 0 | S49: 0 | T49: 0 | U49: 0 | V49: 0 | W49: 0 | X49: 0 | Y49: 0 | Z49: 0 | AA49: 0 | AB49: 0
A50: 48 | B50: -6 | C50: 42 | D50: Nicolas Schweigel | E50: =I50+J50+K50+L50+M50+N50+O50+P50+Q50+R50+S50+T50+U50+V50+W50 -> 60.00023 | G50: 0 | I50: 0 | J50: 0 | K50: 0 | L50: 0 | M50: 0 | N50: 0 | O50: 0 | P50: 60.00023 | Q50: 0 | R50: 0 | S50: 0 | T50: 0 | U50: 0 | V50: 0 | W50: 0 | X50: 0 | Y50: 0 | Z50: 0 | AA50: 0 | AB50: 0
A51: 49 | B51: -6 | C51: 43 | D51: Rainer Jahn | E51: =I51+J51+K51+L51+M51+N51+O51+P51+Q51+R51+S51+T51+U51+V51+W51 -> 60.00016 | G51: 0 | I51: 0 | J51: 0 | K51: 0 | L51: 0 | M51: 0 | N51: 0 | O51: 0 | P51: 60.00016 | Q51: 0 | R51: 0 | S51: 0 | T51: 0 | U51: 0 | V51: 0 | W51: 0 | X51: 0 | Y51: 0 | Z51: 0 | AA51: 0 | AB51: 0
A52: 50 | D52: Behnam Az | E52: =I52+J52+K52+L52+M52+N52+O52+P52+Q52+R52+S52+T52+U52+V52+W52 -> 55.0072 | G52: 0 | I52: 0 | J52: 0 | K52: 0 | L52: 0 | M52: 0 | N52: 0 | O52: 0 | P52: 0 | Q52: 0 | R52: 55.0072 | S52: 0 | T52: 0 | U52: 0 | V52: 0 | W52: 0 | X52: 0 | Y52: 0 | Z52: 0 | AA52: 0 | AB52: 0
A53: 51 | D53: Faiz Elham | E53: =I53+J53+K53+L53+M53+N53+O53+P53+Q53+R53+S53+T53+U53+V53+W53 -> 55.0062 | G53: 0 | I53: 0 | J53: 0 | K53: 0 | L53: 0 | M53: 0 | N53: 0 | O53: 0 | P53: 0 | Q53: 0 | R53: 55.0062 | S53: 0 | T53: 0 | U53: 0 | V53: 0 | W53: 0 | X53: 0 | Y53: 0 | Z53: 0 | AA53: 0 | AB53: 0
A54: 52 | B54: -8 | C54: 44 | D54: Marcus Müller | E54: =I54+J54+K54+L54+M54+N54+O54+P54+Q54+R54+S54+T54+U54+V54+W54 -> 45.00007 | G54: 0 | I54: 0 | J54: 0 | K54: 0 | L54: 0 | M54: 0 | N54: 0 | O54: 45.00007 | P54: 0 | Q54: 0 | R54: 0 | S54: 0 | T54: 0 | U54: 0 | V54: 0 | W54: 0 | X54: 0 | Y54: 0 | Z54: 0 | AA54: 0 | AB54: 0
A55: 53 | B55: -8 | C55: 45 | D55: Peter Kloppisch | E55: =I55+J55+K55+L55+M55+N55+O55+P55+Q55+R55+S55+T55+U55+V55+W55+X55+Y55 -> 40.005 | G55: 0 | I55: 0 | J55: 0 | K55: 0 | L55: 0 | M55: 0 | N55: 0 | O55: 0 | P55: 0 | Q55: 40.005 | R55: 0 | S55: 0 | T55: 0 | U55: 0 | V55: 0 | W55: 0 | X55: 0 | Y55: 0 | Z55: 0 | AA55: 0 | AB55: 0
A56: 54 | B56: -8 | C56: 46 | D56: Sebastian Födisch | E56: =I56+J56+K56+L56+M56+N56+O56+P56+Q56+R56+S56+T56+U56+V56+W56+X56+Y56 -> 35.0002 | G56: 0 | I56: 0 | J56: 0 | K56: 35.0002 | L56: 0 | M56: 0 | N56: 0 | O56: 0 | P56: 0 | Q56: 0 | R56: 0 | S56: 0 | T56: 0 | U56: 0 | V56: 0 | W56: 0 | X56: 0 | Y56: 0 | Z56: 0 | AA56: 0 | AB56: 0
A57: 55 | B57: -8 | C57: 47 | D57: Christoph Richter | E57: =I57+J57+K57+L57+M57+N57+O57+P57+Q57+R57+S57+T57+U57+V57+W57+X57+Y57 -> 30.0078 | F57: =E57-G57 -> 30.0078 | G57: 0 | I57: 0 | J57: 0 | K57: 0 | L57: 0 | M57: 0 | N57: 0 | O57: 0 | P57: 0 | Q57: 30.0078 | R57: 0 | S57: 0 | T57: 0 | U57: 0 | V57: 0 | W57: 0 | X57: 0 | Y57: 0 | Z57: 0 | AA57: 0 | AB57: 0
A58: 56 | B58: -8 | C58: 48 | D58: Dominik Rossmann | E58: =I58+J58+K58+L58+M58+N58+O58+P58+Q58+R58+S58+T58+U58+V58+W58+X58+Y58 -> 30.0072 | G58: 0 | H58: 40 | I58: 30.0072 | J58: 0 | K58: 0 | L58: 0 | M58: 0 | N58: 0 | O58: 0 | P58: 0 | Q58: 0 | R58: 0 | S58: 0 | T58: 0 | U58: 0 | V58: 0 | W58: 0 | X58: 0 | Y58: 0 | Z58: 0 | AA58: 0 | AB58: 0
A59: 57 | B59: -8 | C59: 49 | D59: Steffen Eilenstein | E59: =I59+J59+K59+L59+M59+N59+O59+P59+Q59+R59+S59+T59+U59+V59+W59+X59+Y59 -> 30.0058 | F59: =E59-G59 -> 30.0058 | G59: 0 | I59: 0 | J59: 0 | K59: 0 | L59: 0 | M59: 30.0058 | N59: 0 | O59: 0 | P59: 0 | Q59: 0 | R59: 0 | S59: 0 | T59: 0 | U59: 0 | V59: 0 | W59: 0 | X59: 0 | Y59: 0 | Z59: 0 | AA59: 0 | AB59: 0
A60: 58 | B60: -8 | C60: 50 | D60: Saman Jasemi | E60: =I60+J60+K60+L60+M60+N60+O60+P60+Q60+R60+S60+T60+U60+V60+W60 -> 30.0048 | G60: 0 | I60: 0 | J60: 0 | K60: 0 | L60: 0 | M60: 0 | N60: 0 | O60: 0 | P60: 0 | Q60: 30.0048 | R60: 0 | S60: 0 | T60: 0 | U60: 0 | V60: 0 | W60: 0 | X60: 0 | Y60: 0 | Z60: 0 | AA60: 0 | AB60: 0
A61: 59 | B61: -8 | C61: 51 | D61: Ronald Ratz | E61: =I61+J61+K61+L61+M61+N61+O61+P61+Q61+R61+S61+T61+U61+V61+W61+X61+Y61 -> 30.00014 | F61: =E61-G61 -> 30.00014 | G61: 0 | I61: 0 | J61: 0 | K61: 0 | L61: 30.00014 | M61: 0 | N61: 0 | O61: 0 | P61: 0 | Q61: 0 | R61: 0 | S61: 0 | T61: 0 | U61: 0 | V61: 0 | W61: 0 | X61: 0 | Y61: 0 | Z61: 0 | AA61: 0 | AB61: 0
A62: 60 | B62: -7 | C62: 53 | D62: Jörg Bonitz | E62: =I62+J62+K62+L62+M62+N62+O62+P62+Q62+R62+S62+T62+U62+V62+W62+X62+Y62 -> 25.0068 | F62: =E62-G62 -> 25.0068 | G62: 0 | I62: 25.0068 | J62: 0 | K62: 0 | L62: 0 | M62: 0 | N62: 0 | O62: 0 | P62: 0 | Q62: 0 | R62: 0 | S62: 0 | T62: 0 | U62: 0 | V62: 0 | W62: 0 | X62: 0 | Y62: 0 | Z62: 0 | AA62: 0 | AB62: 0
A63: 61 | B63: -6 | C63: 55 | D63: Chris Banks | E63: =I63+J63+K63+L63+M63+N63+O63+P63+Q63+R63+S63+T63+U63+V63+W63 -> 25.00011 | G63: 0 | I63: 0 | J63: 0 | K63: 0 | L63: 0 | M63: 0 | N63: 0 | O63: 25.00011 | P63: 0 | Q63: 0 | R63: 0 | S63: 0 | T63: 0 | U63: 0 | V63: 0 | W63: 0 | X63: 0 | Y63: 0 | Z63: 0 | AA63: 0 | AB63: 0
A64: 62 | B64: -6 | C64: 56 | D64: Sven Isler | E64: =I64+J64+K64+L64+M64+N64+O64+P64+Q64+R64+S64+T64+U64+V64+W64 -> 20.0056 | G64: 0 | I64: 0 | J64: 0 | K64: 0 | L64: 0 | M64: 20.0056 | N64: 0 | O64: 0 | P64: 0 | Q64: 0 | R64: 0 | S64: 0 | T64: 0 | U64: 0 | V64: 0 | W64: 0 | X64: 0 | Y64: 0 | Z64: 0 | AA64: 0 | AB64: 0
A65: 63 | B65: -6 | C65: 57 | D65: Joel Fandrei | E65: =I65+J65+K65+L65+M65+N65+O65+P65+Q65+R65+S65+T65+U65+V65+W65 -> 20.00003 | G65: 0 | I65: 0 | J65: 0 | K65: 0 | L65: 0 | M65: 0 | N65: 20.00003 | O65: 0 | P65: 0 | Q65: 0 | R65: 0 | S65: 0 | T65: 0 | U65: 0 | V65: 0 | W65: 0 | X65: 0 | Y65: 0 | Z65: 0 | AA65: 0 | AB65: 0
A66: 64 | D66: Abdolkarim Setoudeh | E66: =I66+J66+K66+L66+M66+N66+O66+P66+Q66+R66+S66+T66+U66+V66+W66+X66+Y66 -> 0 | G66: 0 | I66: 0 | J66: 0 | K66: 0 | L66: 0 | M66: 0 | N66: 0 | O66: 0 | P66: 0 | Q66: 0 | R66: 0 | S66: 0 | T66: 0 | U66: 0 | V66: 0 | W66: 0 | X66: 0 | Y66: 0 | Z66: 0 | AA66: 0 | AB66: 0
A67: 65 | B67: =IF(C67="","",C67-A67) ->  | D67: Aissam Labiad | E67: 0 | G67: =INDEX(I67:W67,MATCH(LARGE(I67:W67,COUNTIF(I67:W67,">="&0)),I67:W67,0)) -> 0 | I67: =SUMIF($AC$3:$AC$59,$D67,$AD$3:$AD$59) -> 0 | J67: =SUMIF($AE$3:$AE$42,$D67,$AF$3:$AF$42) -> 0 | K67: =SUMIF($AG$3:$AG$42,$D67,$AH$3:$AH$42) -> 0 | L67: =SUMIF($AI$3:$AI$42,$D67,$AJ$3:$AJ$42) -> 0 | M67: =SUMIF($AK$3:$AK$42,$D67,$AL$3:$AL$42) -> 0 | N67: =SUMIF($AM$3:$AM$42,$D67,$AN$3:$AN$42) -> 0 | O67: =SUMIF($AO$3:$AO$42,$D67,$AP$3:$AP$42) -> 0 | P67: =SUMIF($AQ$3:$AQ$42,$D67,$AR$3:$AR$42) -> 0 | Q67: =SUMIF(AS$3:AS$42,$D67,AT$3:AT$42) -> 0 | R67: =SUMIF(AU$3:AU$42,$D67,AV$3:AV$42) -> 0 | S67: =SUMIF(AW$3:AW$42,$D67,AX$3:AX$42) -> 0 | T67: =SUMIF(AY$3:AY$42,$D67,AZ$3:AZ$42) -> 0 | U67: =SUMIF(BA$3:BA$42,$D67,BB$3:BB$42) -> 0 | V67: 0 | W67: 0 | X67: 0 | Y67: 0 | Z67: 0 | AA67: 0 | AB67: 0
A68: 66 | D68: Alexander Usbeck | E68: 0 | G68: 0 | I68: 0 | J68: 0 | K68: 0 | L68: 0 | M68: 0 | N68: 0 | O68: 0 | P68: 0 | Q68: 0 | R68: 0 | S68: 0 | T68: 0 | U68: 0 | V68: =SUMIF(BC$3:BC$42,$D68,BD$3:BD$42) -> 0 | W68: =SUMIF(BE$3:BE$42,$D68,BF$3:BF$42) -> 0 | X68: =SUMIF(BG$3:BG$42,$D68,BH$3:BH$42) -> 0 | Y68: =SUMIF(BI$3:BI$42,$D68,BJ$3:BJ$42) -> 0 | Z68: =SUMIF(BK$3:BK$42,$D68,BL$3:BL$42) -> 0 | AA68: =SUMIF(BM$3:BM$42,$D68,BN$3:BN$42) -> 0 | AB68: =SUMIF(BO$3:BO$42,$D68,BP$3:BP$42) -> 0
D69: Ali Kirim | E69: 0 | F69: =E69-G69 -> 0 | G69: 0 | I69: 0 | J69: 0 | K69: 0 | L69: 0 | M69: 0 | N69: 0 | O69: 0 | P69: 0 | Q69: 0 | R69: 0 | S69: 0 | T69: 0 | U69: 0 | V69: 0 | W69: 0 | X69: 0 | Y69: 0 | Z69: 0 | AA69: 0 | AB69: 0
D70: Ammar Al Ani | E70: 0 | F70: 0 | G70: 0 | I70: 0 | J70: 0 | K70: 0 | L70: 0 | M70: 0 | N70: 0 | O70: 0 | P70: 0 | Q70: 0 | R70: 0 | S70: 0 | T70: 0 | U70: 0 | V70: 0 | W70: 0 | X70: 0 | Y70: 0 | Z70: 0 | AA70: 0 | AB70: 0
D71: Andre Jung | E71: 0 | F71: 0 | G71: 0 | I71: 0 | J71: 0 | K71: 0 | L71: 0 | M71: 0 | N71: 0 | O71: 0 | P71: 0 | Q71: 0 | R71: 0 | S71: 0 | T71: 0 | U71: 0 | V71: 0 | W71: 0 | X71: 0 | Y71: 0 | Z71: 0 | AA71: 0 | AB71: 0
D72: André Osowski | E72: 0 | F72: 0 | G72: 0 | I72: 0 | J72: 0 | K72: 0 | L72: 0 | M72: 0 | N72: 0 | O72: 0 | P72: 0 | Q72: 0 | R72: 0 | S72: 0 | T72: 0 | U72: 0 | V72: 0 | W72: 0 | X72: 0 | Y72: 0 | Z72: 0 | AA72: 0 | AB72: 0
D73: Andreas Fandrei | E73: 0 | F73: 0 | G73: 0 | I73: 0 | J73: 0 | K73: 0 | L73: 0 | M73: 0 | N73: 0 | O73: 0 | P73: 0 | Q73: 0 | R73: 0 | S73: 0 | T73: 0 | U73: 0 | V73: 0 | W73: 0 | X73: 0 | Y73: 0 | Z73: 0 | AA73: 0 | AB73: 0
D74: Andreas Lositza | E74: 0 | F74: 0 | G74: 0 | I74: 0 | J74: 0 | K74: 0 | L74: 0 | M74: 0 | N74: 0 | O74: 0 | P74: 0 | Q74: 0 | R74: 0 | S74: 0 | T74: 0 | U74: 0 | V74: 0 | W74: 0 | X74: 0 | Y74: 0 | Z74: 0 | AA74: 0 | AB74: 0
D75: Andreas Pohl | E75: 0 | F75: 0 | G75: 0 | I75: 0 | J75: 0 | K75: 0 | L75: 0 | M75: 0 | N75: 0 | O75: 0 | P75: 0 | Q75: 0 | R75: 0 | S75: 0 | T75: 0 | U75: 0 | V75: 0 | W75: 0 | X75: 0 | Y75: 0 | Z75: 0 | AA75: 0 | AB75: 0
D76: Andreas Schreier | E76: 0 | F76: 0 | G76: 0 | I76: 0 | J76: 0 | K76: 0 | L76: 0 | M76: 0 | N76: 0 | O76: 0 | P76: 0 | Q76: 0 | R76: 0 | S76: 0 | T76: 0 | U76: 0 | V76: 0 | W76: 0 | X76: 0 | Y76: 0 | Z76: 0 | AA76: 0 | AB76: 0
D77: Ayhan Ekiz | E77: 0 | F77: 0 | G77: 0 | I77: 0 | J77: 0 | K77: 0 | L77: 0 | M77: 0 | N77: 0 | O77: 0 | P77: 0 | Q77: 0 | R77: 0 | S77: 0 | T77: 0 | U77: 0 | V77: 0 | W77: 0 | X77: 0 | Y77: 0 | Z77: 0 | AA77: 0 | AB77: 0
D78: Benjamin Baumann | E78: 0 | G78: 0 | I78: 0 | J78: 0 | K78: 0 | L78: 0 | M78: 0 | N78: 0 | O78: 0 | P78: 0 | Q78: 0 | R78: 0 | S78: 0 | T78: 0 | U78: 0 | V78: 0 | W78: 0 | X78: 0 | Y78: 0 | Z78: 0 | AA78: 0 | AB78: 0
D79: Björn Rommel | E79: 0 | F79: =E79-G79 -> 0 | G79: 0 | I79: 0 | J79: 0 | K79: 0 | L79: 0 | M79: 0 | N79: 0 | O79: 0 | P79: 0 | Q79: 0 | R79: 0 | S79: 0 | T79: 0 | U79: 0 | V79: 0 | W79: 0 | X79: 0 | Y79: 0 | Z79: 0 | AA79: 0 | AB79: 0
D80: Björn Schumann | E80: 0 | F80: 0 | G80: 0 | I80: 0 | J80: 0 | K80: 0 | L80: 0 | M80: 0 | N80: 0 | O80: 0 | P80: 0 | Q80: 0 | R80: 0 | S80: 0 | T80: 0 | U80: 0 | V80: 0 | W80: 0 | X80: 0 | Y80: 0 | Z80: 0 | AA80: 0 | AB80: 0
D81: Carsten Schröter | E81: 0 | F81: 0 | G81: 0 | I81: 0 | J81: 0 | K81: 0 | L81: 0 | M81: 0 | N81: 0 | O81: 0 | P81: 0 | Q81: 0 | R81: 0 | S81: 0 | T81: 0 | U81: 0 | V81: 0 | W81: 0 | X81: 0 | Y81: 0 | Z81: 0 | AA81: 0 | AB81: 0
D82: Christian Fröhlich | E82: 0 | F82: 0 | G82: 0 | I82: 0 | J82: 0 | K82: 0 | L82: 0 | M82: 0 | N82: 0 | O82: 0 | P82: 0 | Q82: 0 | R82: 0 | S82: 0 | T82: 0 | U82: 0 | V82: 0 | W82: 0 | X82: 0 | Y82: 0 | Z82: 0 | AA82: 0 | AB82: 0
D83: Cihan Ekiz | E83: 0 | F83: 0 | G83: 0 | I83: 0 | J83: 0 | K83: 0 | L83: 0 | M83: 0 | N83: 0 | O83: 0 | P83: 0 | Q83: 0 | R83: 0 | S83: 0 | T83: 0 | U83: 0 | V83: 0 | W83: 0 | X83: 0 | Y83: 0 | Z83: 0 | AA83: 0 | AB83: 0
D84: Danny Fichtmüller | E84: 0 | F84: 0 | G84: 0 | I84: 0 | J84: 0 | K84: 0 | L84: 0 | M84: 0 | N84: 0 | O84: 0 | P84: 0 | Q84: 0 | R84: 0 | S84: 0 | T84: 0 | U84: 0 | V84: 0 | W84: 0 | X84: 0 | Y84: 0 | Z84: 0 | AA84: 0 | AB84: 0
D85: Daud Ilyas Ghauri | E85: 0 | F85: 0 | G85: 0 | I85: 0 | J85: 0 | K85: 0 | L85: 0 | M85: 0 | N85: 0 | O85: 0 | P85: 0 | Q85: 0 | R85: 0 | S85: 0 | T85: 0 | U85: 0 | V85: 0 | W85: 0 | X85: 0 | Y85: 0 | Z85: 0 | AA85: 0 | AB85: 0
D86: Dominic Schmid | E86: 0 | F86: 0 | G86: 0 | I86: 0 | J86: 0 | K86: 0 | L86: 0 | M86: 0 | N86: 0 | O86: 0 | P86: 0 | Q86: 0 | R86: 0 | S86: 0 | T86: 0 | U86: 0 | V86: 0 | W86: 0 | X86: 0 | Y86: 0 | Z86: 0 | AA86: 0 | AB86: 0
D87: Felix Glasow | E87: 0 | F87: 0 | G87: 0 | I87: 0 | J87: 0 | K87: 0 | L87: 0 | M87: 0 | N87: 0 | O87: 0 | P87: 0 | Q87: 0 | R87: 0 | S87: 0 | T87: 0 | U87: 0 | V87: 0 | W87: 0 | X87: 0 | Y87: 0 | Z87: 0 | AA87: 0 | AB87: 0
D88: Felix Rotsching | E88: 0 | F88: 0 | G88: 0 | I88: 0 | J88: 0 | K88: 0 | L88: 0 | M88: 0 | N88: 0 | O88: 0 | P88: 0 | Q88: 0 | R88: 0 | S88: 0 | T88: 0 | U88: 0 | V88: 0 | W88: 0 | X88: 0 | Y88: 0 | Z88: 0 | AA88: 0 | AB88: 0
D89: Florian Tetzner | E89: 0 | F89: 0 | G89: 0 | I89: 0 | J89: 0 | K89: 0 | L89: 0 | M89: 0 | N89: 0 | O89: 0 | P89: 0 | Q89: 0 | R89: 0 | S89: 0 | T89: 0 | U89: 0 | V89: 0 | W89: 0 | X89: 0 | Y89: 0 | Z89: 0 | AA89: 0 | AB89: 0
D90: Francesco Cocco | E90: 0 | F90: 0 | G90: 0 | I90: 0 | J90: 0 | K90: 0 | L90: 0 | M90: 0 | N90: 0 | O90: 0 | P90: 0 | Q90: 0 | R90: 0 | S90: 0 | T90: 0 | U90: 0 | V90: 0 | W90: 0 | X90: 0 | Y90: 0 | Z90: 0 | AA90: 0 | AB90: 0
D91: Frank Brandmeier | E91: 0 | F91: 0 | G91: 0 | I91: 0 | J91: 0 | K91: 0 | L91: 0 | M91: 0 | N91: 0 | O91: 0 | P91: 0 | Q91: 0 | R91: 0 | S91: 0 | T91: 0 | U91: 0 | V91: 0 | W91: 0 | X91: 0 | Y91: 0 | Z91: 0 | AA91: 0 | AB91: 0
D92: Frank Hofmann | E92: 0 | F92: 0 | G92: 0 | I92: 0 | J92: 0 | K92: 0 | L92: 0 | M92: 0 | N92: 0 | O92: 0 | P92: 0 | Q92: 0 | R92: 0 | S92: 0 | T92: 0 | U92: 0 | V92: 0 | W92: 0 | X92: 0 | Y92: 0 | Z92: 0 | AA92: 0 | AB92: 0
D93: Frank Hörnig | E93: 0 | F93: 0 | G93: 0 | I93: 0 | J93: 0 | K93: 0 | L93: 0 | M93: 0 | N93: 0 | O93: 0 | P93: 0 | Q93: 0 | R93: 0 | S93: 0 | T93: 0 | U93: 0 | V93: 0 | W93: 0 | X93: 0 | Y93: 0 | Z93: 0 | AA93: 0 | AB93: 0
D94: Hans Bergmann | E94: 0 | F94: 0 | G94: 0 | I94: 0 | J94: 0 | K94: 0 | L94: 0 | M94: 0 | N94: 0 | O94: 0 | P94: 0 | Q94: 0 | R94: 0 | S94: 0 | T94: 0 | U94: 0 | V94: 0 | W94: 0 | X94: 0 | Y94: 0 | Z94: 0 | AA94: 0 | AB94: 0
D95: Heiko Funk | E95: 0 | F95: 0 | G95: 0 | I95: 0 | J95: 0 | K95: 0 | L95: 0 | M95: 0 | N95: 0 | O95: 0 | P95: 0 | Q95: 0 | R95: 0 | S95: 0 | T95: 0 | U95: 0 | V95: 0 | W95: 0 | X95: 0 | Y95: 0 | Z95: 0 | AA95: 0 | AB95: 0
D96: Helmut Kuball | E96: 0 | F96: 0 | G96: 0 | I96: 0 | J96: 0 | K96: 0 | L96: 0 | M96: 0 | N96: 0 | O96: 0 | P96: 0 | Q96: 0 | R96: 0 | S96: 0 | T96: 0 | U96: 0 | V96: 0 | W96: 0 | X96: 0 | Y96: 0 | Z96: 0 | AA96: 0 | AB96: 0
D97: Hermann Kraus | E97: 0 | F97: 0 | G97: 0 | I97: 0 | J97: 0 | K97: 0 | L97: 0 | M97: 0 | N97: 0 | O97: 0 | P97: 0 | Q97: 0 | R97: 0 | S97: 0 | T97: 0 | U97: 0 | V97: 0 | W97: 0 | X97: 0 | Y97: 0 | Z97: 0 | AA97: 0 | AB97: 0
D98: Holger Seifert | E98: =I98+J98+K98+L98+M98+N98+O98+P98+Q98+R98+S98+T98+U98+V98+W98+X98+Y98 -> 0 | F98: 0 | G98: 0 | I98: 0 | J98: 0 | K98: 0 | L98: 0 | M98: 0 | N98: 0 | O98: 0 | P98: 0 | Q98: 0 | R98: 0 | S98: 0 | T98: 0 | U98: 0 | V98: 0 | W98: 0 | X98: 0 | Y98: 0 | Z98: 0 | AA98: 0 | AB98: 0
D99: Imad Mohamad | E99: 0 | F99: 0 | G99: =INDEX(I99:W99,MATCH(LARGE(I99:W99,COUNTIF(I99:W99,">="&0)),I99:W99,0)) -> 0 | I99: =SUMIF($AC$3:$AC$59,$D99,$AD$3:$AD$59) -> 0 | J99: =SUMIF($AE$3:$AE$42,$D99,$AF$3:$AF$42) -> 0 | K99: =SUMIF($AG$3:$AG$42,$D99,$AH$3:$AH$42) -> 0 | L99: =SUMIF($AI$3:$AI$42,$D99,$AJ$3:$AJ$42) -> 0 | M99: =SUMIF($AK$3:$AK$42,$D99,$AL$3:$AL$42) -> 0 | N99: =SUMIF($AM$3:$AM$42,$D99,$AN$3:$AN$42) -> 0 | O99: =SUMIF($AO$3:$AO$42,$D99,$AP$3:$AP$42) -> 0 | P99: =SUMIF($AQ$3:$AQ$42,$D99,$AR$3:$AR$42) -> 0 | Q99: =SUMIF(AS$3:AS$42,$D99,AT$3:AT$42) -> 0 | R99: =SUMIF(AU$3:AU$42,$D99,AV$3:AV$42) -> 0 | S99: =SUMIF(AW$3:AW$42,$D99,AX$3:AX$42) -> 0 | T99: =SUMIF(AY$3:AY$42,$D99,AZ$3:AZ$42) -> 0 | U99: =SUMIF(BA$3:BA$42,$D99,BB$3:BB$42) -> 0 | V99: 0 | W99: 0 | X99: 0 | Y99: 0 | Z99: 0 | AA99: 0 | AB99: 0
D100: Irina Gorbataya | E100: 0 | F100: 0 | G100: 0 | I100: 0 | J100: 0 | K100: 0 | L100: 0 | M100: 0 | N100: 0 | O100: 0 | P100: 0 | Q100: 0 | R100: 0 | S100: 0 | T100: 0 | U100: 0 | V100: 0 | W100: 0 | X100: 0 | Y100: 0 | Z100: 0 | AA100: 0 | AB100: 0
D101: Istvan Farkas | E101: 0 | G101: 0 | I101: 0 | J101: 0 | K101: 0 | L101: 0 | M101: 0 | N101: 0 | O101: 0 | P101: 0 | Q101: 0 | R101: 0 | S101: 0 | T101: 0 | U101: 0 | V101: 0 | W101: 0 | X101: 0 | Y101: 0 | Z101: 0 | AA101: 0 | AB101: 0
D102: Jens Künitz | E102: 0 | F102: =E102-G102 -> 0 | G102: 0 | I102: 0 | J102: 0 | K102: 0 | L102: 0 | M102: 0 | N102: 0 | O102: 0 | P102: 0 | Q102: 0 | R102: 0 | S102: 0 | T102: 0 | U102: 0 | V102: 0 | W102: 0 | X102: 0 | Y102: 0 | Z102: 0 | AA102: 0 | AB102: 0
D103: Jens Tzschirner | E103: 0 | F103: =E103-G103 -> 0 | G103: 0 | I103: 0 | J103: 0 | K103: 0 | L103: 0 | M103: 0 | N103: 0 | O103: 0 | P103: 0 | Q103: 0 | R103: 0 | S103: 0 | T103: 0 | U103: 0 | V103: 0 | W103: 0 | X103: 0 | Y103: 0 | Z103: 0 | AA103: 0 | AB103: 0
D104: Johannes Schranz | E104: 0 | G104: 0 | I104: 0 | J104: 0 | K104: 0 | L104: 0 | M104: 0 | N104: 0 | O104: 0 | P104: 0 | Q104: 0 | R104: 0 | S104: 0 | T104: 0 | U104: 0 | V104: 0 | W104: 0 | X104: 0 | Y104: 0 | Z104: 0 | AA104: 0 | AB104: 0
D105: Jonas Ziemer | E105: 0 | G105: 0 | I105: 0 | J105: 0 | K105: 0 | L105: 0 | M105: 0 | N105: 0 | O105: 0 | P105: 0 | Q105: 0 | R105: 0 | S105: 0 | T105: 0 | U105: 0 | V105: 0 | W105: 0 | X105: 0 | Y105: 0 | Z105: 0 | AA105: 0 | AB105: 0
D106: Justin Eichhorn | E106: 0 | G106: 0 | I106: 0 | J106: 0 | K106: 0 | L106: 0 | M106: 0 | N106: 0 | O106: 0 | P106: 0 | Q106: 0 | R106: 0 | S106: 0 | T106: 0 | U106: 0 | V106: 0 | W106: 0 | X106: 0 | Y106: 0 | Z106: 0 | AA106: 0 | AB106: 0
D107: Lubos Charvat | E107: 0 | F107: =E107-G107 -> 0 | G107: 0 | I107: 0 | J107: 0 | K107: 0 | L107: 0 | M107: 0 | N107: 0 | O107: 0 | P107: 0 | Q107: 0 | R107: 0 | S107: 0 | T107: 0 | U107: 0 | V107: 0 | W107: 0 | X107: 0 | Y107: 0 | Z107: 0 | AA107: 0 | AB107: 0
D108: Lukas Junker | E108: 0 | F108: =E108-G108 -> 0 | G108: 0 | I108: 0 | J108: 0 | K108: 0 | L108: 0 | M108: 0 | N108: 0 | O108: 0 | P108: 0 | Q108: 0 | R108: 0 | S108: 0 | T108: 0 | U108: 0 | V108: 0 | W108: 0 | X108: 0 | Y108: 0 | Z108: 0 | AA108: 0 | AB108: 0
D109: Lukas Körnig | E109: 0 | G109: 0 | I109: 0 | J109: 0 | K109: 0 | L109: 0 | M109: 0 | N109: 0 | O109: 0 | P109: 0 | Q109: 0 | R109: 0 | S109: 0 | T109: 0 | U109: 0 | V109: 0 | W109: 0 | X109: 0 | Y109: 0 | Z109: 0 | AA109: 0 | AB109: 0
D110: Magnus Suttner | E110: 0 | F110: =E110-G110 -> 0 | G110: 0 | I110: 0 | J110: 0 | K110: 0 | L110: 0 | M110: 0 | N110: 0 | O110: 0 | P110: 0 | Q110: 0 | R110: 0 | S110: 0 | T110: 0 | U110: 0 | V110: 0 | W110: 0 | X110: 0 | Y110: 0 | Z110: 0 | AA110: 0 | AB110: 0
D111: Marco Bertram | E111: 0 | F111: =E111-G111 -> 0 | G111: 0 | I111: 0 | J111: 0 | K111: 0 | L111: 0 | M111: 0 | N111: 0 | O111: 0 | P111: 0 | Q111: 0 | R111: 0 | S111: 0 | T111: 0 | U111: 0 | V111: 0 | W111: 0 | X111: 0 | Y111: 0 | Z111: 0 | AA111: 0 | AB111: 0
D112: Marco Danisch | E112: 0 | F112: =E112-G112 -> 0 | G112: 0 | I112: 0 | J112: 0 | K112: 0 | L112: 0 | M112: 0 | N112: 0 | O112: 0 | P112: 0 | Q112: 0 | R112: 0 | S112: 0 | T112: 0 | U112: 0 | V112: 0 | W112: 0 | X112: 0 | Y112: 0 | Z112: 0 | AA112: 0 | AB112: 0
D113: Marco Rost | E113: 0 | G113: 0 | I113: 0 | J113: 0 | K113: 0 | L113: 0 | M113: 0 | N113: 0 | O113: 0 | P113: 0 | Q113: 0 | R113: 0 | S113: 0 | T113: 0 | U113: 0 | V113: 0 | W113: 0 | X113: 0 | Y113: 0 | Z113: 0 | AA113: 0 | AB113: 0
D114: Mario Ilgen | E114: 0 | F114: =E114-G114 -> 0 | G114: 0 | I114: 0 | J114: 0 | K114: 0 | L114: 0 | M114: 0 | N114: 0 | O114: 0 | P114: 0 | Q114: 0 | R114: 0 | S114: 0 | T114: 0 | U114: 0 | V114: 0 | W114: 0 | X114: 0 | Y114: 0 | Z114: 0 | AA114: 0 | AB114: 0
D115: Markus Elstermann | E115: 0 | G115: 0 | I115: 0 | J115: 0 | K115: 0 | L115: 0 | M115: 0 | N115: 0 | O115: 0 | P115: 0 | Q115: 0 | R115: 0 | S115: 0 | T115: 0 | U115: 0 | V115: 0 | W115: 0 | X115: 0 | Y115: 0 | Z115: 0 | AA115: 0 | AB115: 0
D116: Matthias Bauer | E116: 0 | F116: =E116-G116 -> 0 | G116: 0 | I116: 0 | J116: 0 | K116: 0 | L116: 0 | M116: 0 | N116: 0 | O116: 0 | P116: 0 | Q116: 0 | R116: 0 | S116: 0 | T116: 0 | U116: 0 | V116: 0 | W116: 0 | X116: 0 | Y116: 0 | Z116: 0 | AA116: 0 | AB116: 0
D117: Matthias Eichel | E117: 0 | F117: =E117-G117 -> 0 | G117: 0 | I117: 0 | J117: 0 | K117: 0 | L117: 0 | M117: 0 | N117: 0 | O117: 0 | P117: 0 | Q117: 0 | R117: 0 | S117: 0 | T117: 0 | U117: 0 | V117: 0 | W117: 0 | X117: 0 | Y117: 0 | Z117: 0 | AA117: 0 | AB117: 0
D118: Michael Haferung | E118: 0 | F118: =E118-G118 -> 0 | G118: 0 | I118: 0 | J118: 0 | K118: 0 | L118: 0 | M118: 0 | N118: 0 | O118: 0 | P118: 0 | Q118: 0 | R118: 0 | S118: 0 | T118: 0 | U118: 0 | V118: 0 | W118: 0 | X118: 0 | Y118: 0 | Z118: 0 | AA118: 0 | AB118: 0
D119: Michael Richter | E119: 0 | F119: =E119-G119 -> 0 | G119: 0 | I119: 0 | J119: 0 | K119: 0 | L119: 0 | M119: 0 | N119: 0 | O119: 0 | P119: 0 | Q119: 0 | R119: 0 | S119: 0 | T119: 0 | U119: 0 | V119: 0 | W119: 0 | X119: 0 | Y119: 0 | Z119: 0 | AA119: 0 | AB119: 0
D120: Michael Schnabel | E120: 0 | G120: 0 | I120: 0 | J120: 0 | K120: 0 | L120: 0 | M120: 0 | N120: 0 | O120: 0 | P120: 0 | Q120: 0 | R120: 0 | S120: 0 | T120: 0 | U120: 0 | V120: 0 | W120: 0 | X120: 0 | Y120: 0 | Z120: 0 | AA120: 0 | AB120: 0
D121: Michael Seidel | E121: 0 | F121: =E121-G121 -> 0 | G121: 0 | I121: 0 | J121: 0 | K121: 0 | L121: 0 | M121: 0 | N121: 0 | O121: 0 | P121: 0 | Q121: 0 | R121: 0 | S121: 0 | T121: 0 | U121: 0 | V121: 0 | W121: 0 | X121: 0 | Y121: 0 | Z121: 0 | AA121: 0 | AB121: 0
D122: Michael Simon | E122: 0 | F122: 0 | G122: 0 | I122: 0 | J122: 0 | K122: 0 | L122: 0 | M122: 0 | N122: 0 | O122: 0 | P122: 0 | Q122: 0 | R122: 0 | S122: 0 | T122: 0 | U122: 0 | V122: 0 | W122: 0 | X122: 0 | Y122: 0 | Z122: 0 | AA122: 0 | AB122: 0
D123: Mohanad Alobidi | E123: 0 | F123: 0 | G123: 0 | I123: 0 | J123: 0 | K123: 0 | L123: 0 | M123: 0 | N123: 0 | O123: 0 | P123: 0 | Q123: 0 | R123: 0 | S123: 0 | T123: 0 | U123: 0 | V123: 0 | W123: 0 | X123: 0 | Y123: 0 | Z123: 0 | AA123: 0 | AB123: 0
D124: Oliver Witzik | E124: 0 | F124: 0 | G124: 0 | I124: 0 | J124: 0 | K124: 0 | L124: 0 | M124: 0 | N124: 0 | O124: 0 | P124: 0 | Q124: 0 | R124: 0 | S124: 0 | T124: 0 | U124: 0 | V124: 0 | W124: 0 | X124: 0 | Y124: 0 | Z124: 0 | AA124: 0 | AB124: 0
D125: Örbi Ermdorfer | E125: 0 | F125: 0 | G125: 0 | I125: 0 | J125: 0 | K125: 0 | L125: 0 | M125: 0 | N125: 0 | O125: 0 | P125: 0 | Q125: 0 | R125: 0 | S125: 0 | T125: 0 | U125: 0 | V125: 0 | W125: 0 | X125: 0 | Y125: 0 | Z125: 0 | AA125: 0 | AB125: 0
D126: Patrick Schicker | E126: 0 | F126: 0 | G126: 0 | I126: 0 | J126: 0 | K126: 0 | L126: 0 | M126: 0 | N126: 0 | O126: 0 | P126: 0 | Q126: 0 | R126: 0 | S126: 0 | T126: 0 | U126: 0 | V126: 0 | W126: 0 | X126: 0 | Y126: 0 | Z126: 0 | AA126: 0 | AB126: 0
D127: Peter Stadelmann | E127: 0 | F127: 0 | G127: 0 | I127: 0 | J127: 0 | K127: 0 | L127: 0 | M127: 0 | N127: 0 | O127: 0 | P127: 0 | Q127: 0 | R127: 0 | S127: 0 | T127: 0 | U127: 0 | V127: 0 | W127: 0 | X127: 0 | Y127: 0 | Z127: 0 | AA127: 0 | AB127: 0
D128: Pragadeeshwaran Ratheesh | E128: 0 | F128: 0 | G128: 0 | I128: 0 | J128: 0 | K128: 0 | L128: 0 | M128: 0 | N128: 0 | O128: 0 | P128: 0 | Q128: 0 | R128: 0 | S128: 0 | T128: 0 | U128: 0 | V128: 0 | W128: 0 | X128: 0 | Y128: 0 | Z128: 0 | AA128: 0 | AB128: 0
D129: Rainer Eberlein | E129: 0 | G129: 0 | I129: 0 | J129: 0 | K129: 0 | L129: 0 | M129: 0 | N129: 0 | O129: 0 | P129: 0 | Q129: 0 | R129: 0 | S129: 0 | T129: 0 | U129: 0 | V129: 0 | W129: 0 | X129: 0 | Y129: 0 | Z129: 0 | AA129: 0 | AB129: 0
D130: Rainer Krämer | E130: =I130+J130+K130+L130+M130+N130+O130+P130+Q130+R130+S130+T130+U130+V130+W130+X130+Y130 -> 0 | F130: =E130-G130 -> 0 | G130: 0 | I130: 0 | J130: 0 | K130: 0 | L130: 0 | M130: 0 | N130: 0 | O130: 0 | P130: 0 | Q130: 0 | R130: 0 | S130: 0 | T130: 0 | U130: 0 | V130: 0 | W130: 0 | X130: 0 | Y130: 0 | Z130: 0 | AA130: 0 | AB130: 0
D131: Rainer Trupkovic | E131: 0 | F131: 0 | G131: =INDEX(I131:W131,MATCH(LARGE(I131:W131,COUNTIF(I131:W131,">="&0)),I131:W131,0)) -> 0 | I131: =SUMIF($AC$3:$AC$59,$D131,$AD$3:$AD$59) -> 0 | J131: =SUMIF($AE$3:$AE$42,$D131,$AF$3:$AF$42) -> 0 | K131: =SUMIF($AG$3:$AG$42,$D131,$AH$3:$AH$42) -> 0 | L131: =SUMIF($AI$3:$AI$42,$D131,$AJ$3:$AJ$42) -> 0 | M131: =SUMIF($AK$3:$AK$42,$D131,$AL$3:$AL$42) -> 0 | N131: =SUMIF($AM$3:$AM$42,$D131,$AN$3:$AN$42) -> 0 | O131: =SUMIF($AO$3:$AO$42,$D131,$AP$3:$AP$42) -> 0 | P131: =SUMIF($AQ$3:$AQ$42,$D131,$AR$3:$AR$42) -> 0 | Q131: =SUMIF(AS$3:AS$42,$D131,AT$3:AT$42) -> 0 | R131: =SUMIF(AU$3:AU$42,$D131,AV$3:AV$42) -> 0 | S131: =SUMIF(AW$3:AW$42,$D131,AX$3:AX$42) -> 0 | T131: =SUMIF(AY$3:AY$42,$D131,AZ$3:AZ$42) -> 0 | U131: =SUMIF(BA$3:BA$42,$D131,BB$3:BB$42) -> 0 | V131: 0 | W131: 0 | X131: 0 | Y131: 0 | Z131: 0 | AA131: 0 | AB131: 0
D132: Rico Krumbiegel | E132: 0 | F132: 0 | G132: 0 | I132: 0 | J132: 0 | K132: 0 | L132: 0 | M132: 0 | N132: 0 | O132: 0 | P132: 0 | Q132: 0 | R132: 0 | S132: 0 | T132: 0 | U132: 0 | V132: =SUMIF(BC$3:BC$42,$D132,BD$3:BD$42) -> 0 | W132: =SUMIF(BE$3:BE$42,$D132,BF$3:BF$42) -> 0 | X132: =SUMIF(BG$3:BG$42,$D132,BH$3:BH$42) -> 0 | Y132: =SUMIF(BI$3:BI$42,$D132,BJ$3:BJ$42) -> 0 | Z132: =SUMIF(BK$3:BK$42,$D132,BL$3:BL$42) -> 0 | AA132: =SUMIF(BM$3:BM$42,$D132,BN$3:BN$42) -> 0 | AB132: =SUMIF(BO$3:BO$42,$D132,BP$3:BP$42) -> 0
D133: Robert Ochmann | E133: 0 | F133: 0 | G133: 0 | I133: 0 | J133: 0 | K133: 0 | L133: 0 | M133: 0 | N133: 0 | O133: 0 | P133: 0 | Q133: 0 | R133: 0 | S133: 0 | T133: 0 | U133: 0 | V133: 0 | W133: 0 | X133: 0 | Y133: 0 | Z133: 0 | AA133: 0 | AB133: 0
D134: Ronny Zimmermann | E134: 0 | F134: 0 | G134: 0 | I134: 0 | J134: 0 | K134: 0 | L134: 0 | M134: 0 | N134: 0 | O134: 0 | P134: 0 | Q134: 0 | R134: 0 | S134: 0 | T134: 0 | U134: 0 | V134: 0 | W134: 0 | X134: 0 | Y134: 0 | Z134: 0 | AA134: 0 | AB134: 0
D135: Shuo Yang | E135: 0 | F135: 0 | G135: 0 | I135: 0 | J135: 0 | K135: 0 | L135: 0 | M135: 0 | N135: 0 | O135: 0 | P135: 0 | Q135: 0 | R135: 0 | S135: 0 | T135: 0 | U135: 0 | V135: 0 | W135: 0 | X135: 0 | Y135: 0 | Z135: 0 | AA135: 0 | AB135: 0
D136: Slava Nikiforov | E136: 0 | F136: 0 | G136: 0 | I136: 0 | J136: 0 | K136: 0 | L136: 0 | M136: 0 | N136: 0 | O136: 0 | P136: 0 | Q136: 0 | R136: 0 | S136: 0 | T136: 0 | U136: 0 | V136: 0 | W136: 0 | X136: 0 | Y136: 0 | Z136: 0 | AA136: 0 | AB136: 0
D137: Stefan Meußler | E137: 0 | F137: 0 | G137: 0 | I137: 0 | J137: 0 | K137: 0 | L137: 0 | M137: 0 | N137: 0 | O137: 0 | P137: 0 | Q137: 0 | R137: 0 | S137: 0 | T137: 0 | U137: 0 | V137: 0 | W137: 0 | X137: 0 | Y137: 0 | Z137: 0 | AA137: 0 | AB137: 0
D138: Steffen Meußler | E138: 0 | F138: 0 | G138: 0 | I138: 0 | J138: 0 | K138: 0 | L138: 0 | M138: 0 | N138: 0 | O138: 0 | P138: 0 | Q138: 0 | R138: 0 | S138: 0 | T138: 0 | U138: 0 | V138: 0 | W138: 0 | X138: 0 | Y138: 0 | Z138: 0 | AA138: 0 | AB138: 0
D139: Tanja Ender | E139: 0 | G139: 0 | I139: 0 | J139: 0 | K139: 0 | L139: 0 | M139: 0 | N139: 0 | O139: 0 | P139: 0 | Q139: 0 | R139: 0 | S139: 0 | T139: 0 | U139: 0 | V139: 0 | W139: 0 | X139: 0 | Y139: 0 | Z139: 0 | AA139: 0 | AB139: 0
D140: Thimo Troks | E140: 0 | F140: =E140-G140 -> 0 | G140: 0 | I140: 0 | J140: 0 | K140: 0 | L140: 0 | M140: 0 | N140: 0 | O140: 0 | P140: 0 | Q140: 0 | R140: 0 | S140: 0 | T140: 0 | U140: 0 | V140: 0 | W140: 0 | X140: 0 | Y140: 0 | Z140: 0 | AA140: 0 | AB140: 0
D141: Thomas Blang | E141: 0 | G141: 0 | I141: 0 | J141: 0 | K141: 0 | L141: 0 | M141: 0 | N141: 0 | O141: 0 | P141: 0 | Q141: 0 | R141: 0 | S141: 0 | T141: 0 | U141: 0 | V141: 0 | W141: 0 | X141: 0 | Y141: 0 | Z141: 0 | AA141: 0 | AB141: 0
D142: Thomas Fritz | E142: 0 | F142: =E142-G142 -> 0 | G142: 0 | I142: 0 | J142: 0 | K142: 0 | L142: 0 | M142: 0 | N142: 0 | O142: 0 | P142: 0 | Q142: 0 | R142: 0 | S142: 0 | T142: 0 | U142: 0 | V142: 0 | W142: 0 | X142: 0 | Y142: 0 | Z142: 0 | AA142: 0 | AB142: 0
D143: Thomas Garbe | E143: 0 | F143: 0 | G143: 0 | I143: 0 | J143: 0 | K143: 0 | L143: 0 | M143: 0 | N143: 0 | O143: 0 | P143: 0 | Q143: 0 | R143: 0 | S143: 0 | T143: 0 | U143: 0 | V143: 0 | W143: 0 | X143: 0 | Y143: 0 | Z143: 0 | AA143: 0 | AB143: 0
D144: Thomas Kämpfer | E144: 0 | F144: 0 | G144: 0 | I144: 0 | J144: 0 | K144: 0 | L144: 0 | M144: 0 | N144: 0 | O144: 0 | P144: 0 | Q144: 0 | R144: 0 | S144: 0 | T144: 0 | U144: 0 | V144: 0 | W144: 0 | X144: 0 | Y144: 0 | Z144: 0 | AA144: 0 | AB144: 0
D145: Thomas Kraege | E145: 0 | F145: 0 | G145: 0 | I145: 0 | J145: 0 | K145: 0 | L145: 0 | M145: 0 | N145: 0 | O145: 0 | P145: 0 | Q145: 0 | R145: 0 | S145: 0 | T145: 0 | U145: 0 | V145: 0 | W145: 0 | X145: 0 | Y145: 0 | Z145: 0 | AA145: 0 | AB145: 0
D146: Thomas Matka | E146: 0 | F146: 0 | G146: 0 | I146: 0 | J146: 0 | K146: 0 | L146: 0 | M146: 0 | N146: 0 | O146: 0 | P146: 0 | Q146: 0 | R146: 0 | S146: 0 | T146: 0 | U146: 0 | V146: 0 | W146: 0 | X146: 0 | Y146: 0 | Z146: 0 | AA146: 0 | AB146: 0
D147: Thomas Schnabl | E147: 0 | F147: 0 | G147: 0 | I147: 0 | J147: 0 | K147: 0 | L147: 0 | M147: 0 | N147: 0 | O147: 0 | P147: 0 | Q147: 0 | R147: 0 | S147: 0 | T147: 0 | U147: 0 | V147: 0 | W147: 0 | X147: 0 | Y147: 0 | Z147: 0 | AA147: 0 | AB147: 0
D148: Till Fritzsche | E148: 0 | F148: 0 | G148: 0 | I148: 0 | J148: 0 | K148: 0 | L148: 0 | M148: 0 | N148: 0 | O148: 0 | P148: 0 | Q148: 0 | R148: 0 | S148: 0 | T148: 0 | U148: 0 | V148: 0 | W148: 0 | X148: 0 | Y148: 0 | Z148: 0 | AA148: 0 | AB148: 0
D149: Timo Veit | E149: 0 | F149: 0 | G149: 0 | I149: 0 | J149: 0 | K149: 0 | L149: 0 | M149: 0 | N149: 0 | O149: 0 | P149: 0 | Q149: 0 | R149: 0 | S149: 0 | T149: 0 | U149: 0 | V149: 0 | W149: 0 | X149: 0 | Y149: 0 | Z149: 0 | AA149: 0 | AB149: 0
D150: Tino Wendelmuth | E150: 0 | G150: 0 | I150: 0 | J150: 0 | K150: 0 | L150: 0 | M150: 0 | N150: 0 | O150: 0 | P150: 0 | Q150: 0 | R150: 0 | S150: 0 | T150: 0 | U150: 0 | V150: 0 | W150: 0 | X150: 0 | Y150: 0 | Z150: 0 | AA150: 0 | AB150: 0
D151: Ulrich Löffel | E151: 0 | F151: =E151-G151 -> 0 | G151: 0 | I151: 0 | J151: 0 | K151: 0 | L151: 0 | M151: 0 | N151: 0 | O151: 0 | P151: 0 | Q151: 0 | R151: 0 | S151: 0 | T151: 0 | U151: 0 | V151: 0 | W151: 0 | X151: 0 | Y151: 0 | Z151: 0 | AA151: 0 | AB151: 0
D152: Ulrike Wilfer | E152: 0 | F152: =E152-G152 -> 0 | G152: 0 | I152: 0 | J152: 0 | K152: 0 | L152: 0 | M152: 0 | N152: 0 | O152: 0 | P152: 0 | Q152: 0 | R152: 0 | S152: 0 | T152: 0 | U152: 0 | V152: 0 | W152: 0 | X152: 0 | Y152: 0 | Z152: 0 | AA152: 0 | AB152: 0
D153: Volker Stahl | E153: 0 | G153: 0 | I153: 0 | J153: 0 | K153: 0 | L153: 0 | M153: 0 | N153: 0 | O153: 0 | P153: 0 | Q153: 0 | R153: 0 | S153: 0 | T153: 0 | U153: 0 | V153: 0 | W153: 0 | X153: 0 | Y153: 0 | Z153: 0 | AA153: 0 | AB153: 0
E154: =I154+J154+K154+L154+M154+N154+O154+P154+Q154+R154+S154+T154+U154+V154+W154 -> 0 | G154: 0 | I154: 0 | J154: 0 | K154: 0 | L154: 0 | M154: 0 | N154: 0 | O154: 0 | P154: 0 | Q154: 0 | R154: 0 | S154: 0 | T154: 0 | U154: 0 | V154: =SUMIF(BC$3:BC$42,$D154,BD$3:BD$42) -> 0 | W154: =SUMIF(BE$3:BE$42,$D154,BF$3:BF$42) -> 0
E155: 0 | G155: 0 | I155: 0 | J155: 0 | K155: 0 | L155: 0 | M155: 0 | N155: 0 | O155: 0 | P155: 0 | Q155: 0 | R155: 0 | S155: 0 | T155: 0 | U155: 0 | V155: 0 | W155: 0
E156: 0 | G156: 0 | I156: 0 | J156: 0 | K156: 0 | L156: 0 | M156: 0 | N156: 0 | O156: 0 | P156: 0 | Q156: 0 | R156: 0 | S156: 0 | T156: 0 | U156: 0 | V156: 0 | W156: 0
E157: 0 | G157: 0 | I157: 0 | J157: 0 | K157: 0 | L157: 0 | M157: 0 | N157: 0 | O157: 0 | P157: 0 | Q157: 0 | R157: 0 | S157: 0 | T157: 0 | U157: 0 | V157: 0 | W157: 0
E158: 0 | G158: 0 | I158: 0 | J158: 0 | K158: 0 | L158: 0 | M158: 0 | N158: 0 | O158: 0 | P158: 0 | Q158: 0 | R158: 0 | S158: 0 | T158: 0 | U158: 0 | V158: 0 | W158: 0
E159: 0 | G159: 0 | I159: 0 | J159: 0 | K159: 0 | L159: 0 | M159: 0 | N159: 0 | O159: 0 | P159: 0 | Q159: 0 | R159: 0 | S159: 0 | T159: 0 | U159: 0 | V159: 0 | W159: 0
E160: 0 | G160: 0 | I160: 0 | J160: 0 | K160: 0 | L160: 0 | M160: 0 | N160: 0 | O160: 0 | P160: 0 | Q160: 0 | R160: 0 | S160: 0 | T160: 0 | U160: 0 | V160: 0 | W160: 0
E161: 0 | G161: 0 | I161: 0 | J161: 0 | K161: 0 | L161: 0 | M161: 0 | N161: 0 | O161: 0 | P161: 0 | Q161: 0 | R161: 0 | S161: 0 | T161: 0 | U161: 0 | V161: 0 | W161: 0
E162: 0 | G162: 0 | I162: 0 | J162: 0 | K162: 0 | L162: 0 | M162: 0 | N162: 0 | O162: 0 | P162: 0 | Q162: 0 | R162: 0 | S162: 0 | T162: 0 | U162: 0 | V162: 0 | W162: 0
E163: 0 | G163: =INDEX(I163:W163,MATCH(LARGE(I163:W163,COUNTIF(I163:W163,">="&0)),I163:W163,0)) -> 0 | I163: =SUMIF($AC$3:$AC$59,$D163,$AD$3:$AD$59) -> 0 | J163: =SUMIF($AE$3:$AE$42,$D163,$AF$3:$AF$42) -> 0 | K163: =SUMIF($AG$3:$AG$42,$D163,$AH$3:$AH$42) -> 0 | L163: =SUMIF($AI$3:$AI$42,$D163,$AJ$3:$AJ$42) -> 0 | M163: =SUMIF($AK$3:$AK$42,$D163,$AL$3:$AL$42) -> 0 | N163: =SUMIF($AM$3:$AM$42,$D163,$AN$3:$AN$42) -> 0 | O163: =SUMIF($AO$3:$AO$42,$D163,$AP$3:$AP$42) -> 0 | P163: =SUMIF($AQ$3:$AQ$42,$D163,$AR$3:$AR$42) -> 0 | Q163: =SUMIF(AS$3:AS$42,$D163,AT$3:AT$42) -> 0 | R163: =SUMIF(AU$3:AU$42,$D163,AV$3:AV$42) -> 0 | S163: =SUMIF(AW$3:AW$42,$D163,AX$3:AX$42) -> 0 | T163: =SUMIF(AY$3:AY$42,$D163,AZ$3:AZ$42) -> 0 | U163: =SUMIF(BA$3:BA$42,$D163,BB$3:BB$42) -> 0 | V163: =SUMIF(BC$3:BC$42,$D163,BD$3:BD$42) -> 0 | W163: =SUMIF(BE$3:BE$42,$D163,BF$3:BF$42) -> 0
E164: 0 | G164: 0 | I164: 0 | J164: 0 | K164: 0 | L164: 0 | M164: 0 | N164: 0 | O164: 0 | P164: 0 | Q164: 0 | R164: 0 | S164: 0 | T164: 0 | U164: 0 | V164: 0 | W164: 0
E165: 0 | G165: 0 | I165: 0 | J165: 0 | K165: 0 | L165: 0 | M165: 0 | N165: 0 | O165: 0 | P165: 0 | Q165: 0 | R165: 0 | S165: 0 | T165: 0 | U165: 0 | V165: 0 | W165: 0
E166: 0 | G166: 0 | I166: 0 | J166: 0 | K166: 0 | L166: 0 | M166: 0 | N166: 0 | O166: 0 | P166: 0 | Q166: 0 | R166: 0 | S166: 0 | T166: 0 | U166: 0 | V166: 0 | W166: 0
E167: 0 | G167: 0 | I167: 0 | J167: 0 | K167: 0 | L167: 0 | M167: 0 | N167: 0 | O167: 0 | P167: 0 | Q167: 0 | R167: 0 | S167: 0 | T167: 0 | U167: 0 | V167: 0 | W167: 0
E168: 0 | G168: 0 | I168: 0 | J168: 0 | K168: 0 | L168: 0 | M168: 0 | N168: 0 | O168: 0 | P168: 0 | Q168: 0 | R168: 0 | S168: 0 | T168: 0 | U168: 0 | V168: 0 | W168: 0
E169: 0 | G169: 0 | I169: 0 | J169: 0 | K169: 0 | L169: 0 | M169: 0 | N169: 0 | O169: 0 | P169: 0 | Q169: 0 | R169: 0 | S169: 0 | T169: 0 | U169: 0 | V169: 0 | W169: 0
E170: 0 | G170: 0 | I170: 0 | J170: 0 | K170: 0 | L170: 0 | M170: 0 | N170: 0 | O170: 0 | P170: 0 | Q170: 0 | R170: 0 | S170: 0 | T170: 0 | U170: 0 | V170: 0 | W170: 0
E171: 0 | G171: 0 | I171: 0 | J171: 0 | K171: 0 | L171: 0 | M171: 0 | N171: 0 | O171: 0 | P171: 0 | Q171: 0 | R171: 0 | S171: 0 | T171: 0 | U171: 0 | V171: 0 | W171: 0
E172: 0 | G172: 0 | I172: 0 | J172: 0 | K172: 0 | L172: 0 | M172: 0 | N172: 0 | O172: 0 | P172: 0 | Q172: 0 | R172: 0 | S172: 0 | T172: 0 | U172: 0 | V172: 0 | W172: 0
E173: 0 | G173: 0 | I173: 0 | J173: 0 | K173: 0 | L173: 0 | M173: 0 | N173: 0 | O173: 0 | P173: 0 | Q173: 0 | R173: 0 | S173: 0 | T173: 0 | U173: 0 | V173: 0 | W173: 0
E174: 0 | G174: 0 | I174: 0 | J174: 0 | K174: 0 | L174: 0 | M174: 0 | N174: 0 | O174: 0 | P174: 0 | Q174: 0 | R174: 0 | S174: 0 | T174: 0 | U174: 0 | V174: 0 | W174: 0
E175: 0 | G175: 0 | I175: 0 | J175: 0 | K175: 0 | L175: 0 | M175: 0 | N175: 0 | O175: 0 | P175: 0 | Q175: 0 | R175: 0 | S175: 0 | T175: 0 | U175: 0 | V175: 0 | W175: 0
E176: 0 | G176: 0 | I176: 0 | J176: 0 | K176: 0 | L176: 0 | M176: 0 | N176: 0 | O176: 0 | P176: 0 | Q176: 0 | R176: 0 | S176: 0 | T176: 0 | U176: 0 | V176: 0 | W176: 0
E177: 0 | G177: 0 | I177: 0 | J177: 0 | K177: 0 | L177: 0 | M177: 0 | N177: 0 | O177: 0 | P177: 0 | Q177: 0 | R177: 0 | S177: 0 | T177: 0 | U177: 0 | V177: 0 | W177: 0
E178: 0 | G178: 0 | I178: 0 | J178: 0 | K178: 0 | L178: 0 | M178: 0 | N178: 0 | O178: 0 | P178: 0 | Q178: 0 | R178: 0 | S178: 0 | T178: 0 | U178: 0 | V178: 0 | W178: 0
E179: 0 | G179: 0 | I179: 0 | J179: 0 | K179: 0 | L179: 0 | M179: 0 | N179: 0 | O179: 0 | P179: 0 | Q179: 0 | R179: 0 | S179: 0 | T179: 0 | U179: 0 | V179: 0 | W179: 0
E180: 0 | G180: 0 | I180: 0 | J180: 0 | K180: 0 | L180: 0 | M180: 0 | N180: 0 | O180: 0 | P180: 0 | Q180: 0 | R180: 0 | S180: 0 | T180: 0 | U180: 0 | V180: 0 | W180: 0
E181: 0 | G181: 0 | I181: 0 | J181: 0 | K181: 0 | L181: 0 | M181: 0 | N181: 0 | O181: 0 | P181: 0 | Q181: 0 | R181: 0 | S181: 0 | T181: 0 | U181: 0 | V181: 0 | W181: 0
E182: 0 | G182: 0 | I182: 0 | J182: 0 | K182: 0 | L182: 0 | M182: 0 | N182: 0 | O182: 0 | P182: 0 | Q182: 0 | R182: 0 | S182: 0 | T182: 0 | U182: 0 | V182: 0 | W182: 0
E183: 0 | G183: 0 | I183: 0 | J183: 0 | K183: 0 | L183: 0 | M183: 0 | N183: 0 | O183: 0 | P183: 0 | Q183: 0 | R183: 0 | S183: 0 | T183: 0 | U183: 0 | V183: 0 | W183: 0
E184: 0 | G184: 0 | I184: 0 | J184: 0 | K184: 0 | L184: 0 | M184: 0 | N184: 0 | O184: 0 | P184: 0 | Q184: 0 | R184: 0 | S184: 0 | T184: 0 | U184: 0 | V184: 0 | W184: 0
E185: 0 | G185: 0 | I185: 0 | J185: 0 | K185: 0 | L185: 0 | M185: 0 | N185: 0 | O185: 0 | P185: 0 | Q185: 0 | R185: 0 | S185: 0 | T185: 0 | U185: 0 | V185: 0 | W185: 0
E186: 0 | G186: 0 | I186: 0 | J186: 0 | K186: 0 | L186: 0 | M186: 0 | N186: 0 | O186: 0 | P186: 0 | Q186: 0 | R186: 0 | S186: 0 | T186: 0 | U186: 0 | V186: 0 | W186: 0
E187: 0 | G187: 0 | I187: 0 | J187: 0 | K187: 0 | L187: 0 | M187: 0 | N187: 0 | O187: 0 | P187: 0 | Q187: 0 | R187: 0 | S187: 0 | T187: 0 | U187: 0 | V187: 0 | W187: 0
E188: 0 | G188: 0 | I188: 0 | J188: 0 | K188: 0 | L188: 0 | M188: 0 | N188: 0 | O188: 0 | P188: 0 | Q188: 0 | R188: 0 | S188: 0 | T188: 0 | U188: 0 | V188: 0 | W188: 0
E189: 0 | G189: 0 | I189: 0 | J189: 0 | K189: 0 | L189: 0 | M189: 0 | N189: 0 | O189: 0 | P189: 0 | Q189: 0 | R189: 0 | S189: 0 | T189: 0 | U189: 0 | V189: 0 | W189: 0
E190: 0 | G190: 0 | I190: 0 | J190: 0 | K190: 0 | L190: 0 | M190: 0 | N190: 0 | O190: 0 | P190: 0 | Q190: 0 | R190: 0 | S190: 0 | T190: 0 | U190: 0 | V190: 0 | W190: 0
E191: 0 | G191: 0 | I191: 0 | J191: 0 | K191: 0 | L191: 0 | M191: 0 | N191: 0 | O191: 0 | P191: 0 | Q191: 0 | R191: 0 | S191: 0 | T191: 0 | U191: 0 | V191: 0 | W191: 0
E192: 0 | G192: 0 | I192: 0 | J192: 0 | K192: 0 | L192: 0 | M192: 0 | N192: 0 | O192: 0 | P192: 0 | Q192: 0 | R192: 0 | S192: 0 | T192: 0 | U192: 0 | V192: 0 | W192: 0
E193: 0 | G193: 0 | I193: 0 | J193: 0 | K193: 0 | L193: 0 | M193: 0 | N193: 0 | O193: 0 | P193: 0 | Q193: 0 | R193: 0 | S193: 0 | T193: 0 | U193: 0 | V193: 0 | W193: 0
E194: 0 | G194: 0 | I194: 0 | J194: 0 | K194: 0 | L194: 0 | M194: 0 | N194: 0 | O194: 0 | P194: 0 | Q194: 0 | R194: 0 | S194: 0 | T194: 0 | U194: 0 | V194: 0 | W194: 0
E195: 0 | G195: =INDEX(I195:W195,MATCH(LARGE(I195:W195,COUNTIF(I195:W195,">="&0)),I195:W195,0)) -> 0 | I195: =SUMIF($AC$3:$AC$59,$D195,$AD$3:$AD$59) -> 0 | J195: =SUMIF($AE$3:$AE$42,$D195,$AF$3:$AF$42) -> 0 | K195: =SUMIF($AG$3:$AG$42,$D195,$AH$3:$AH$42) -> 0 | L195: =SUMIF($AI$3:$AI$42,$D195,$AJ$3:$AJ$42) -> 0 | M195: =SUMIF($AK$3:$AK$42,$D195,$AL$3:$AL$42) -> 0 | N195: =SUMIF($AM$3:$AM$42,$D195,$AN$3:$AN$42) -> 0 | O195: =SUMIF($AO$3:$AO$42,$D195,$AP$3:$AP$42) -> 0 | P195: =SUMIF($AQ$3:$AQ$42,$D195,$AR$3:$AR$42) -> 0 | Q195: =SUMIF(AS$3:AS$42,$D195,AT$3:AT$42) -> 0 | R195: =SUMIF(AU$3:AU$42,$D195,AV$3:AV$42) -> 0 | S195: =SUMIF(AW$3:AW$42,$D195,AX$3:AX$42) -> 0 | T195: =SUMIF(AY$3:AY$42,$D195,AZ$3:AZ$42) -> 0 | U195: =SUMIF(BA$3:BA$42,$D195,BB$3:BB$42) -> 0 | V195: =SUMIF(BC$3:BC$42,$D195,BD$3:BD$42) -> 0 | W195: =SUMIF(BE$3:BE$42,$D195,BF$3:BF$42) -> 0
E196: 0 | G196: 0 | I196: 0 | J196: 0 | K196: 0 | L196: 0 | M196: 0 | N196: 0 | O196: 0 | P196: 0 | Q196: 0 | R196: 0 | S196: 0 | T196: 0 | U196: 0 | V196: 0 | W196: 0
E197: 0 | G197: 0 | I197: 0 | J197: 0 | K197: 0 | L197: 0 | M197: 0 | N197: 0 | O197: 0 | P197: 0 | Q197: 0 | R197: 0 | S197: 0 | T197: 0 | U197: 0 | V197: 0 | W197: 0
E198: 0 | G198: 0 | I198: 0 | J198: 0 | K198: 0 | L198: 0 | M198: 0 | N198: 0 | O198: 0 | P198: 0 | Q198: 0 | R198: 0 | S198: 0 | T198: 0 | U198: 0 | V198: 0 | W198: 0
E199: 0 | G199: 0 | I199: 0 | J199: 0 | K199: 0 | L199: 0 | M199: 0 | N199: 0 | O199: 0 | P199: 0 | Q199: 0 | R199: 0 | S199: 0 | T199: 0 | U199: 0 | V199: 0 | W199: 0
E200: 0 | G200: 0 | I200: 0 | J200: 0 | K200: 0 | L200: 0 | M200: 0 | N200: 0 | O200: 0 | P200: 0 | Q200: 0 | R200: 0 | S200: 0 | T200: 0 | U200: 0 | V200: 0 | W200: 0
... 1 more rows
